Workbook

Sheet Case reports included
A1: Title | B1: Non-pediatric = 0 Pediatric = 1 | C1: Title mentions "case" | D1: Spine-or SIJ-focus 1=y 0=n | E1: Title words | F1: Colon in title | G1: ICD-10 Schema | H1: Cited by | I1: cites/year | J1: Multidisciplinary authorship (0=no, 1=yes) | L1: Adverse = 0 Mgmt = 1 | M1: Journal type 0 = medical 1 = chiro / alt / complementary med 2 = radiology 3 = PT 4 = integrative 5 = case report 6 = dental 7 = other | N1: H-index ScImago | O1: Harzing H-index | P1: Authors | Q1: Citation | R1: First Author | S1: Journal/Book | T1: Publication Year | U1: Create Date | V1: PMCID | W1: NIHMS ID | X1: DOI
A2: A 14-year-old competitive, high-level athlete with unilateral low back pain: case report | B2: 1 | C2: =IF(ISNUMBER(SEARCH("*case*",A2)),"1","0") -> 1 | D2: 1 | E2: =IF(LEN(TRIM(A2))=0,0,LEN(TRIM(A2))-LEN(SUBSTITUTE(A2," ",""))+1) -> 12 | F2: =COUNTIF(A2,"*:*") -> 1 | G2: S | H2: 3 | I2: =H2/(2020-T2) -> 0.4 | J2: 0 | L2: 1 | M2: 1 | N2: 10 | P2: Piper S, Degraauw C. | Q2: J Can Chiropr Assoc. 2012 Dec;56(4):283-91. | R2: Piper S | S2: J Can Chiropr Assoc | T2: 2012 | U2: 2012-12-04 | V2: PMC3501915
A3: A 69-year-old presenting with musculoskeletal low back pain: A case of lumbosacral chordoma | B3: 0 | C3: 1 | D3: 1 | E3: 13 | F3: 1 | G3: C | H3: 3 | I3: 0.5 | J3: 0 | L3: 1 | M3: 1 | N3: 20 | P3: Williams SP, Beckerman B, Fonti MEP | Q3: J Chiropr Med | R3: Williams SP | S3: J Chiropr Med | T3: 2014
A4: A biopsychological approach to chronic low back pain and disability in a private chiropractic setting: A case study | B4: 0 | C4: 1 | D4: 1 | E4: 18 | F4: 1 | G4: M | H4: 7 | I4: 0.4 | J4: 0 | L4: 1 | M4: 1 | N4: 10 | P4: Parish KA | Q4: J Can Chiropr Assoc | R4: Parish KA | S4: J Can Chiropr Assoc | T4: 2002
A5: A calcific pelvic mass in a woman with chronic spinal pain: A case of mature cystic teratoma | B5: 0 | C5: 1 | D5: 1 | E5: 17 | F5: 1 | G5: C | H5: 6 | I5: 0.7 | J5: 1 | K5: MD (OBGYN) | L5: 1 | M5: 1 | N5: 20 | P5: Kaeser MA, McDonald JK, Kettner NW | Q5: J Chiropr Med | R5: Kaeser MA | S5: J Chiropr Med | T5: 2011
A6: A case of central retinal artery occlusion after chiropractic manipulation of the neck | B6: 0 | C6: 1 | D6: 1 | E6: 13 | F6: 0 | G6: H0 | H6: 14 | I6: 1.8 | J6: 0 | L6: 0 | M6: 0 | N6: 28 | P6: Jang YJ, Chun JW, Lee SW, Kim HC. | Q6: Korean J Ophthalmol. 2012 Apr;26(2):132-4. doi: 10.3341/kjo.2012.26.2.132. Epub 2012 Mar 22. | R6: Jang YJ | S6: Korean J Ophthalmol | T6: 2012 | U6: 2012-04-19 | V6: PMC3325618 | X6: 10.3341/kjo.2012.26.2.132
A7: A case of cerebellar infarction caused by acute subclavian thrombus following minor trauma | B7: 0 | C7: 1 | D7: 1 | E7: 13 | F7: 0 | G7: I | H7: 9 | I7: 1.3 | J7: 0 | L7: 0 | M7: 0 | N7: 60 | P7: Park H, Kim HJ, Cha MJ, Lee JY, Koh IS, Nam HS. | Q7: Yonsei Med J. 2013 Nov;54(6):1538-41. doi: 10.3349/ymj.2013.54.6.1538. | R7: Park H | S7: Yonsei Med J | T7: 2013 | U7: 2013-10-22 | V7: PMC3809882 | X7: 10.3349/ymj.2013.54.6.1538
A8: A case of cerebellopontine angle meningioma presenting with neck and upper extremity pain | B8: 0 | C8: 1 | D8: 1 | E8: 13 | F8: 0 | G8: C | H8: 8 | I8: 0.7 | J8: 0 | L8: 1 | M8: 1 | N8: 68 | P8: Stein PJ. | Q8: J Manipulative Physiol Ther. 2009 Nov-Dec;32(9):776-80. doi: 10.1016/j.jmpt.2009.10.003. | R8: Stein PJ | S8: J Manipulative Physiol Ther | T8: 2009 | U8: 2009-12-17 | X8: 10.1016/j.jmpt.2009.10.003
A9: A case of chiropractic manipulation immediately relieving depression with chronic pain | B9: 0 | C9: 1 | D9: 1 | E9: 11 | F9: 0 | G9: F | H9: 1 | I9: =H9/(2020-T9) -> 0.1 | J9: 0 | L9: 1 | M9: 1 | N9: 87 | P9: Tsai JF. | Q9: J Altern Complement Med. 2009 Jun;15(6):611-2. doi: 10.1089/acm.2009.0031. | R9: Tsai JF | S9: J Altern Complement Med | T9: 2009 | U9: 2009-06-02 | X9: 10.1089/acm.2009.0031
A10: A case of chronic migraine remission after chiropractic care | B10: 0 | C10: 1 | D10: 1 | E10: 9 | F10: 0 | G10: G | H10: 8 | I10: =H10/(2020-T10) -> 0.7 | J10: 0 | L10: 1 | M10: 1 | N10: 20 | P10: Tuchin P | Q10: J Chiropr Med | R10: Tuchin P | S10: J Chiropr Med | T10: 2008
A11: A case of early sports specialization in an adolescent athlete | B11: 1 | C11: 1 | D11: 0 | E11: 10 | F11: 0 | G11: S | H11: 51 | I11: =H11/(2020-T11) -> 8.5 | J11: 0 | L11: 1 | M11: 1 | N11: 10 | P11: Ferguson B, Stern PJ | Q11: J Can Chiropr Assoc | R11: Ferguson B, Stern PJ | S11: J Can Chiropr Assoc | T11: 2014
A12: A case of leptomeningeal disease presenting as a lumbar nerve root radiculopathy: A case report | B12: 0 | C12: 1 | D12: 1 | E12: 15 | F12: 1 | G12: C | H12: 7 | I12: =H12/(2020-T12) -> 0.3 | J12: 0 | L12: 1 | M12: 1 | N12: 30 | P12: French SD, Reggars JW | Q12: Australas Chiropr Osteopathy. 1999 Nov;8(3):96-101. | R12: French SD | S12: Australas Chiropr Osteopathy. 1999 Nov;8(3):96-101. | T12: 1998
A13: A case of multiple Vertebrobasilar artery fenestration misdiagnosed as vertebral artery dissection | B13: 0 | C13: 1 | D13: 1 | E13: 12 | F13: 0 | G13: I | H13: 0 | I13: 0.0 | J13: 0 | L13: 0 | M13: 0 | N13: 70 | P13: Wang F, Wang X, Li X, Zheng H, Zhang Z. | Q13: BMC Neurol. 2020 Feb 20;20(1):63. doi: 10.1186/s12883-020-01642-2. | R13: Wang F | S13: BMC Neurol | T13: 2020 | U13: 2020-02-22 | V13: PMC7033924 | X13: 10.1186/s12883-020-01642-2
A14: A case of pheochromocytoma presenting as low back pain | B14: 0 | C14: 1 | D14: 1 | E14: 9 | F14: 0 | G14: D | H14: 8 | I14: 0.6 | J14: 0 | L14: 1 | M14: 1 | N14: 68 | P14: Davis MA, Bove GM. | Q14: J Manipulative Physiol Ther. 2007 Oct;30(8):598-601. doi: 10.1016/j.jmpt.2007.06.009. | R14: Davis MA | S14: J Manipulative Physiol Ther | T14: 2007 | U14: 2007-11-13 | X14: 10.1016/j.jmpt.2007.06.009
A15: A Case of Posterior Inferior Cerebellar Artery Infarction after Cervical Chiropractic Manipulation | B15: 0 | C15: 1 | D15: 1 | E15: 12 | F15: 0 | G15: I | H15: 3 | I15: =H15/(2020-T15) -> 1.5 | J15: 0 | L15: 0 | M15: 0 | N15: 2 | P15: Jeong DK, Hwang SK. | Q15: Korean J Neurotrauma. 2018 Oct;14(2):159-163. doi: 10.13004/kjnt.2018.14.2.159. Epub 2018 Oct 31. | R15: Jeong DK | S15: Korean J Neurotrauma | T15: 2018 | U15: 2018-11-08 | V15: PMC6218346 | X15: 10.13004/kjnt.2018.14.2.159
A16: A case of pseudo–angina pectoris from a pectoralis minor trigger point caused by cross-country skiing | B16: 0 | C16: 1 | D16: 0 | E16: 15 | F16: 0 | G16: M | H16: 16 | I16: =H16/(2020-T16) -> 1.8 | J16: 1 | K16: MD (PMR) | L16: 1 | M16: 1 | N16: 20 | P16: Lawson GE, Hung LY, Ko GD, Laframboise MA | Q16: J Chiropr Med | R16: Lawson GE | S16: J Chiropr Med | T16: 2011
A17: A case of subdural hematoma and temporal bone fracture as complications of chiropractic manipulation | B17: 0 | C17: 1 | D17: 0 | E17: 14 | F17: 0 | G17: S | H17: 11 | I17: =H17/(2020-T17) -> 0.4 | J17: 0 | L17: 0 | M17: 0 | N17: 73 | P17: Stuart PJ, Bernstein T. | Q17: J Emerg Med. 1989 Nov-Dec;7(6):615-7. doi: 10.1016/0736-4679(89)90007-3. | R17: Stuart PJ | S17: J Emerg Med | T17: 1989 | U17: 1989-11-01 | X17: 10.1016/0736-4679(89)90007-3
A18: A case of vertebral metastasis with pathologic c2 fracture | B18: 0 | C18: 1 | D18: 1 | E18: 9 | F18: 0 | G18: C | H18: 6 | I18: 0.5 | J18: 0 | L18: 1 | M18: 1 | N18: 68 | P18: Davis MA, Taylor JA. | Q18: J Manipulative Physiol Ther. 2007 Jul-Aug;30(6):466-71. doi: 10.1016/j.jmpt.2007.05.001. | R18: Davis MA | S18: J Manipulative Physiol Ther | T18: 2007 | U18: 2007-08-19 | X18: 10.1016/j.jmpt.2007.05.001
A19: A case report of a patient with upper extremity symptoms: differentiating radicular and referred pain | B19: 0 | C19: 1 | D19: 1 | E19: 15 | F19: 1 | G19: M | H19: 11 | I19: =H19/(2020-T19) -> 0.8 | J19: 0 | L19: 1 | M19: 1 | N19: 30 | P19: Daub CW | Q19: Chiropr & Osteopat | R19: Daub CW | S19: Chiropr & Osteopat | T19: 2007
A20: A case report of an intermuscular lipoma: Presentation, pathophysiology, differential diagnosis | B20: 0 | C20: 1 | D20: 0 | E20: 11 | F20: 1 | G20: C | H20: 20 | I20: 2.0 | J20: 0 | L20: 1 | M20: 1 | N20: 20 | P20: Kaeser MA | Q20: J Chiropr Med | R20: Kaeser MA, Smith LW, Kettner NW | S20: J Chiropr Med | T20: 2010
A21: A case report of an uncommon cause of cauda equina symptoms | B21: 0 | C21: 1 | D21: 1 | E21: 11 | F21: 0 | G21: C | H21: 4 | I21: 0.3 | J21: 0 | L21: 1 | M21: 1 | N21: 68 | P21: Kier A, Timchur MD, McCarthy PW. | Q21: J Manipulative Physiol Ther. 2007 Jul-Aug;30(6):459-65. doi: 10.1016/j.jmpt.2007.04.012. | R21: Kier A | S21: J Manipulative Physiol Ther | T21: 2007 | U21: 2007-08-19 | X21: 10.1016/j.jmpt.2007.04.012
A22: A case report of an unstable cervical spine fracture: parallels to the thoracolumbar chance fracture | B22: 0 | C22: 1 | D22: 1 | E22: 15 | F22: 1 | G22: S | H22: 3 | I22: 0.2 | J22: 0 | L22: 1 | M22: 1 | N22: 68 | P22: Rowell RM, Stites J, Stone-Hall K. | Q22: J Manipulative Physiol Ther. 2006 Sep;29(7):586-9. doi: 10.1016/j.jmpt.2006.06.028. | R22: Rowell RM | S22: J Manipulative Physiol Ther | T22: 2006 | U22: 2006-09-05 | X22: 10.1016/j.jmpt.2006.06.028
A23: A case report of bilateral synovial chondromatosis of the ankle | B23: 0 | C23: 1 | D23: 0 | E23: 10 | F23: 0 | G23: M | H23: 45 | I23: 3.5 | J23: 0 | L23: 1 | M23: 1 | N23: 30 | P23: Shearer H, Stern P, Brubacher A, Pringle TC | Q23: Chiropr & Osteopat | R23: Shearer H | S23: Chiropr & Osteopat | T23: 2007
A24: A Case Report of Osteochondritis Dissecans in a Rare Location: The Lateral Femoral Trochlea | B24: 0 | C24: 1 | D24: 0 | E24: 14 | F24: 1 | G24: M | H24: 0 | I24: 0.0 | J24: 0 | L24: 1 | M24: 1 | N24: 20 | P24: Villafañe F, Holloway N, Kettner N. | Q24: J Chiropr Med. 2017 Dec;16(4):324-330. doi: 10.1016/j.jcm.2017.07.002. Epub 2017 Dec 7. | R24: Villafañe F | S24: J Chiropr Med | T24: 2017 | U24: 2017-12-26 | V24: PMC5731836 | X24: 10.1016/j.jcm.2017.07.002
A25: A case report on nonresolving conservative care of low back pain and sciatic radicular syndrome | B25: 0 | C25: 1 | D25: 1 | E25: 15 | F25: 0 | G25: M | H25: 1 | I25: 0.0 | J25: 0 | L25: 1 | M25: 1 | N25: 68 | P25: Haney PL, Mootz RD. | Q25: J Manipulative Physiol Ther. 1985 Jun;8(2):109-14. | R25: Haney PL | S25: J Manipulative Physiol Ther | T25: 1985 | U25: 1985-06-01
A26: A case report on the delayed diagnosis of transverse myelitis in a 61-year-old male farmer | B26: 0 | C26: 1 | D26: 1 | E26: 15 | F26: 0 | G26: G | H26: 0 | I26: 0.0 | J26: 0 | L26: 1 | M26: 1 | N26: 10 | P26: Cox J, Russo A | Q26: J Can Chiropr Assoc. 2016 Mar;60(1):66-72. | R26: Cox J | S26: J Can Chiropr Assoc | T26: 2020
A27: A case series of migraine changes following a manipulative therapy trial | B27: 0 | C27: 1 | D27: 1 | E27: 11 | F27: 0 | G27: G | H27: 11 | I27: =H27/(2020-T27) -> 0.5 | J27: 0 | L27: 1 | M27: 1 | N27: 30 | P27: Tuchin PJ. | Q27: Australas Chiropr Osteopathy. 1997 Nov;6(3):85-91. | R27: Tuchin PJ | S27: Australas Chiropr Osteopathy | T27: 1997 | U27: 2007-11-08 | V27: PMC2050634
A28: A case study of back pain and renal cell carcinoma | B28: 0 | C28: 1 | D28: 1 | E28: 10 | F28: 0 | G28: C | H28: 8 | I28: 0.7 | J28: 0 | L28: 1 | M28: 1 | N28: 20 | P28: Rectenwald R | Q28: J Chiropr Med | R28: Rectenwald R | S28: J Chiropr Med | T28: 2008
A29: A case study of chiropractic management of pregnancy-related heartburn with postulated fetal epigenome implications | B29: 0 | C29: 1 | D29: 1 | E29: 14 | F29: 0 | G29: O | H29: 4 | I29: 0.5 | J29: 0 | L29: 1 | M29: 4 | N29: 32 | P29: Peterson C. | Q29: Explore (NY). 2012 Sep-Oct;8(5):304-8. doi: 10.1016/j.explore.2012.06.001. | R29: Peterson C | S29: Explore (NY) | T29: 2012 | U29: 2012-09-04 | X29: 10.1016/j.explore.2012.06.001
A30: A case study of chronic headaches | B30: 0 | C30: 1 | D30: 1 | E30: 6 | F30: 0 | G30: G | H30: 13 | I30: 0.5 | J30: 0 | L30: 1 | M30: 1 | N30: 30 | P30: Tuchin PJ, Brookes MJ, Swaffer T. | Q30: Australas Chiropr Osteopathy. 1996 Jul;5(2):47-52. | R30: Tuchin PJ | S30: Australas Chiropr Osteopathy | T30: 1996 | U30: 1996-07-01 | V30: PMC2050613
A31: A case study utilizing spinal manipulation and dynamic neuromuscular stabilization care to enhance function of a post cerebrovascular accident patient | B31: 0 | C31: 1 | D31: 1 | E31: 20 | F31: 0 | G31: I | H31: 9 | I31: 1.5 | J31: 0 | L31: 1 | M31: 1 | N31: 46 | P31: Oppelt M, Juehring D, Sorgenfrey G, Harvey PJ, Larkin-Thier SM. | Q31: J Bodyw Mov Ther. 2014 Jan;18(1):17-22. doi: 10.1016/j.jbmt.2013.04.003. Epub 2013 May 21. | R31: Oppelt M | S31: J Bodyw Mov Ther | T31: 2014 | U31: 2014-01-14 | X31: 10.1016/j.jbmt.2013.04.003
A32: A case study utilizing Vojta/Dynamic Neuromuscular Stabilization therapy to control symptoms of a chronic migraine sufferer | B32: 0 | C32: 1 | D32: 1 | E32: 16 | F32: 0 | G32: G | H32: 18 | I32: 2.0 | J32: 0 | L32: 1 | M32: 1 | N32: 46 | P32: Juehring DD, Barber MR. | Q32: J Bodyw Mov Ther. 2011 Oct;15(4):538-41. doi: 10.1016/j.jbmt.2011.01.019. Epub 2011 Feb 16. | R32: Juehring DD | S32: J Bodyw Mov Ther | T32: 2011 | U32: 2011-09-28 | X32: 10.1016/j.jbmt.2011.01.019
A33: A cervical spinal cord injury following chiropractic manipulation | B33: 0 | C33: 0 | D33: 1 | E33: 8 | F33: 0 | G33: G | H33: 62 | I33: 1.4 | J33: 0 | L33: 0 | M33: 0 | N33: 104 | P33: Rinsky LA, Reynolds GG, Jameson RM, Hamilton RD. | Q33: Paraplegia. 1976 Feb;13(4):223-7. doi: 10.1038/sc.1976.35. | R33: Rinsky LA | S33: Paraplegia | T33: 1976 | U33: 1976-02-01 | X33: 10.1038/sc.1976.35
A34: A chiropractic approach to the treatment of dysmenorrhea | B34: 0 | C34: 0 | D34: 1 | E34: 8 | F34: 0 | G34: N | H34: 30 | I34: 1.0 | J34: 0 | L34: 1 | M34: 1 | N34: 68 | P34: Liebl NA, Butler LM. | Q34: J Manipulative Physiol Ther. 1990 Feb;13(2):101-6. | R34: Liebl NA | S34: J Manipulative Physiol Ther | T34: 1990 | U34: 1990-02-01
A35: A collaborative approach between chiropractic and dentistry to address temporomandibular dysfunction: a case report | B35: 0 | C35: 1 | D35: 1 | E35: 14 | F35: 1 | G35: M | H35: 5 | I35: 0.8 | J35: 1 | K35: DDS | L35: 1 | M35: 1 | N35: 20 | P35: Rubis LM, Rubis D, Winchester B | Q35: J Chiropr Med | R35: Rubis LM | S35: J Chiropr Med | T35: 2014
A36: A comparative radiologic examination for unresponsive plantar fasciitis | B36: 0 | C36: 0 | D36: 0 | E36: 8 | F36: 0 | G36: M | H36: 12 | I36: 0.5 | J36: 0 | L36: 1 | M36: 1 | N36: 68 | P36: Kell PM. | Q36: J Manipulative Physiol Ther. 1994 Jun;17(5):329-34. | R36: Kell PM | S36: J Manipulative Physiol Ther | T36: 1994 | U36: 1994-06-01
A37: A congenital anomaly of the atlas as a diagnostic dilemma: a case report | B37: 0 | C37: 1 | D37: 1 | E37: 13 | F37: 1 | G37: Q | H37: 21 | I37: 1.6 | J37: 0 | L37: 1 | M37: 1 | N37: 68 | P37: de Zoete A, Langeveld UA. | Q37: J Manipulative Physiol Ther. 2007 Jan;30(1):62-4. doi: 10.1016/j.jmpt.2006.11.011. | R37: de Zoete A | S37: J Manipulative Physiol Ther | T37: 2007 | U37: 2007-01-17 | X37: 10.1016/j.jmpt.2006.11.011
A38: A conservative approach for a patient with traumatically induced urinary incontinence | B38: 1 | C38: 0 | D38: 1 | E38: 11 | F38: 0 | G38: S | H38: 21 | I38: 1.0 | J38: 0 | L38: 1 | M38: 1 | N38: 68 | P38: Stude DE, Bergmann TF, Finer BA. | Q38: J Manipulative Physiol Ther. 1998 Jun;21(5):363-7. | R38: Stude DE | S38: J Manipulative Physiol Ther | T38: 1998 | U38: 1998-06-17
A39: A conservative management protocol for calcific tendinitis of the shoulder | B39: 0 | C39: 0 | D39: 0 | E39: 10 | F39: 0 | G39: M | H39: 55 | I39: 2.6 | J39: 0 | L39: 1 | M39: 1 | N39: 68 | P39: Gimblett PA, Saville J, Ebrall P. | Q39: J Manipulative Physiol Ther. 1999 Nov-Dec;22(9):622-7. doi: 10.1016/s0161-4754(99)70023-0. | R39: Gimblett PA | S39: J Manipulative Physiol Ther | T39: 1999 | U39: 2000-01-08 | X39: 10.1016/s0161-4754(99)70023-0
A40: A delayed diagnosis of bilateral facet dislocation of the cervical spine: A case report | B40: 0 | C40: 1 | D40: 1 | E40: 14 | F40: 1 | G40: S | H40: 8 | I40: 1.3 | J40: 0 | L40: 1 | M40: 1 | N40: 10 | P40: Grenier J-M, Stern PJ | Q40: J Can Chiropr Assoc | R40: Grenier J-M, | S40: J Can Chiropr Assoc | T40: 2014
A41: A functional pre-manipulative spinal orthopedic assessment maneuver | B41: 0 | C41: 0 | D41: 1 | E41: 7 | F41: 0 | G41: M | H41: 0 | I41: 0.0 | J41: 0 | L41: 1 | M41: 1 | N41: 20 | P41: Stude DE | Q41: J Chiropr Med | R41: Stude DE | S41: J Chiropr Med | T41: 2005
A42: A holistic approach to severe headache symptoms in a patient unresponsive to regional manual therapy | B42: 0 | C42: 0 | D42: 1 | E42: 15 | F42: 0 | G42: G | H42: 3 | I42: 0.1 | J42: 0 | L42: 1 | M42: 1 | N42: 68 | P42: Stude DE, Sweere JJ. | Q42: J Manipulative Physiol Ther. 1996 Mar-Apr;19(3):202-7. | R42: Stude DE | S42: J Manipulative Physiol Ther | T42: 1996 | U42: 1996-03-01
A43: A manual therapy and exercise approach to meralgia paresthetica in pregnancy: a case report | B43: 0 | C43: 1 | D43: 1 | E43: 14 | F43: 1 | G43: O | H43: 23 | I43: 1.6 | J43: 1 | K43: MD (Sports medicine) | L43: 1 | M43: 1 | N43: 20 | P43: Vianin M, Skaggs CD, Prather H, Winchester BA | Q43: J Chiropr Med | R43: Vianin M, Skaggs CD, Prather H, Winchester BA | S43: J Chiropr Med | T43: 2006
A44: A mind-body treatment for hypothyroid dysfunction: a report of two cases | B44: 0 | C44: 1 | D44: 0 | E44: 11 | F44: 1 | G44: E | H44: 8 | I44: 0.7 | J44: 0 | L44: 1 | M44: 1 | N44: 46 | P44: Bablis P, Pollard H. | Q44: Complement Ther Clin Pract. 2009 May;15(2):67-71. doi: 10.1016/j.ctcp.2009.01.004. Epub 2009 Feb 23. | R44: Bablis P | S44: Complement Ther Clin Pract | T44: 2009 | U44: 2009-04-04 | X44: 10.1016/j.ctcp.2009.01.004
A45: A missed Jefferson fracture in chiropractic practice | B45: 0 | C45: 0 | D45: 1 | E45: 7 | F45: 0 | G45: S | H45: 3 | I45: 0.2 | J45: 0 | L45: 1 | M45: 1 | N45: 68 | P45: Regelink GA, de Zoete A. | Q45: J Manipulative Physiol Ther. 2001 Mar-Apr;24(3):210-3. | R45: Regelink GA | S45: J Manipulative Physiol Ther | T45: 2001 | U45: 2001-04-21
A46: A multidisciplinary approach including the use of platelet-rich plasma to treat an elite athlete with patellar tendinopathy - a case report | B46: 0 | C46: 1 | D46: 0 | E46: 21 | F46: 0 | G46: M | H46: 11 | I46: 1.6 | J46: 0 | L46: 1 | M46: 1 | N46: 10 | P46: Rowan TL, Drouin JL | Q46: J Can Chiropr Assoc | R46: Rowan TL | S46: J Can Chiropr Assoc | T46: 2013
A47: A multi-modal treatment approach for the shoulder: A 4 patient case series | B47: 0 | C47: 1 | D47: 1 | E47: 12 | F47: 1 | G47: M | H47: 36 | I47: 2.4 | J47: 0 | L47: 1 | M47: 1 | N47: 30 | P47: Pollard H, Pribicevic M | Q47: Chiropr & Osteopat | R47: Pollard H, Pribicevic M | S47: Chiropr & Osteopat | T47: 2005
A48: A multivariate time-series descriptive case study of chiropractic care in the treatment of cervical pain | B48: 0 | C48: 1 | D48: 1 | E48: 15 | F48: 0 | G48: M | H48: 6 | I48: 0.2 | J48: 0 | L48: 1 | M48: 1 | N48: 68 | P48: Lowden TA, Keating JC Jr, Meeker WC. | Q48: J Manipulative Physiol Ther. 1986 Dec;9(4):267-77. | R48: Lowden TA | S48: J Manipulative Physiol Ther | T48: 1986 | U48: 1986-12-01
A49: A Novel Treatment Combination for Failed Back Surgery Syndrome, With a 41-Month Follow-Up: A Retrospective Case Report | B49: 0 | C49: 1 | D49: 1 | E49: 17 | F49: 1 | G49: M | H49: 1 | I49: 0.5 | J49: 1 | K49: PT | L49: 1 | M49: 1 | N49: 20 | P49: Maddalozzo GF, Aikenhead K, Sheth V, Perisic MN. | Q49: J Chiropr Med. 2018 Dec;17(4):256-263. doi: 10.1016/j.jcm.2018.03.007. Epub 2019 Jan 25. | R49: Maddalozzo GF | S49: J Chiropr Med | T49: 2018 | U49: 2019-03-09 | V49: PMC6391233 | X49: 10.1016/j.jcm.2018.03.007
A50: A patient with deep vein thrombosis presenting to a chiropractic clinic: a case report | B50: 0 | C50: 1 | D50: 0 | E50: 14 | F50: 1 | G50: I | H50: 2 | I50: 0.2 | J50: 0 | L50: 1 | M50: 1 | N50: 68 | P50: Fernandez M, Pollard H, McHardy A. | Q50: J Manipulative Physiol Ther. 2007 Feb;30(2):144-51. doi: 10.1016/j.jmpt.2006.12.009. | R50: Fernandez M | S50: J Manipulative Physiol Ther | T50: 2007 | U50: 2007-02-27 | X50: 10.1016/j.jmpt.2006.12.009
A51: A possible correlation between vitamin D deficiency and loss of smell: 2 case reports | B51: 0 | C51: 1 | D51: 1 | E51: 14 | F51: 1 | G51: R | H51: 8 | I51: 0.9 | J51: 0 | L51: 1 | M51: 1 | N51: 20 | P51: Kruse RA, Cambron JA | Q51: J Chiropr Med | R51: Kruse RA | S51: J Chiropr Med | T51: 2011
A52: A posterior ring apophyseal fracture and disc herniation in a 21-year-old competitive basketball player: a case report | B52: 0 | C52: 1 | D52: 1 | E52: 17 | F52: 1 | G52: S | H52: 3 | I52: 0.6 | J52: 0 | L52: 1 | M52: 1 | N52: 10 | P52: Deleo T, Merotto S, Smith C, D'Angelo K. | Q52: J Can Chiropr Assoc. 2015 Dec;59(4):373-82. | R52: Deleo T | S52: J Can Chiropr Assoc | T52: 2015 | U52: 2016-01-28 | V52: PMC4711330
A53: A rare case of Eagle syndrome and diffuse idiopathic skeletal hyperostosis in the cervical spine | B53: 0 | C53: 1 | D53: 1 | E53: 15 | F53: 0 | G53: M | H53: 4 | I53: 1.3 | J53: 0 | L53: 1 | M53: 1 | N53: 10 | P53: Emary PC, Dornink M, Taylor JA | Q53: J Can Chiropr Assoc | R53: Emary PC | S53: J Can Chiropr Assoc | T53: 2017
A54: A rare cause of chronic elbow pain in an adolescent baseball player: A case report | B54: 0 | C54: 1 | D54: 0 | E54: 15 | F54: 1 | G54: M | H54: 1 | I54: 0.3 | J54: 0 | L54: 1 | M54: 1 | N54: 10 | P54: Wasylynko D | Q54: J Can Chiropr Assoc | R54: Wasylynko D | S54: J Can Chiropr Assoc | T54: 2016
A55: A rare presentation of benign acute childhood myositis | B55: 1 | C55: 0 | D55: 1 | E55: 8 | F55: 0 | G55: M | H55: 1 | I55: 1.0 | J55: 1 | K55: MD (Orthopedic surgery) | L55: 1 | M55: 5 | N55: 8 | P55: Chu EC, Yip AS. | Q55: Clin Case Rep. 2019 Jan 29;7(3):461-464. doi: 10.1002/ccr3.2001. eCollection 2019 Mar. | R55: Chu EC | S55: Clin Case Rep | T55: 2019 | U55: 2019-03-23 | V55: PMC6406135 | X55: 10.1002/ccr3.2001
A56: A rare presentation of cervical osteochondroma arising in a spinous process | B56: 0 | C56: 0 | D56: 1 | E56: 11 | F56: 0 | G56: C | H56: 9 | I56: 1.1 | J56: 0 | L56: 1 | M56: 0 | N56: 243 | P56: Bonic EE, Kettner NW. | Q56: Spine (Phila Pa 1976). 2012 Jan 1;37(1):E69-72. doi: 10.1097/BRS.0b013e31821fcfde. | R56: Bonic EE | S56: Spine (Phila Pa 1976) | T56: 2012 | U56: 2011-05-05 | X56: 10.1097/BRS.0b013e31821fcfde
A57: A risk/benefit analysis of spinal manipulation therapy for relief of lumbar or cervical pain | B57: 0 | C57: 0 | D57: 1 | E57: 14 | F57: 0 | G57: M | H57: 153 | I57: 5.7 | J57: 0 | L57: 0 | M57: 0 | N57: 192 | P57: Powell FC, Hanigan WC, Olivero WC. | Q57: Neurosurgery. 1993 Jul;33(1):73-8; discussion 78-9. doi: 10.1227/00006123-199307000-00011. | R57: Powell FC | S57: Neurosurgery | T57: 1993 | U57: 1993-07-01 | X57: 10.1227/00006123-199307000-00011
A58: A specific electrotherapy technique in the treatment of osteoarthritis of the knee: three case reports | B58: 0 | C58: 1 | D58: 0 | E58: 15 | F58: 1 | G58: M | H58: 2 | I58: 0.1 | J58: 0 | L58: 1 | M58: 1 | N58: 66 | P58: Singh BB, Zarow FM, Traina A, Scaringe J. | Q58: Altern Ther Health Med. 2000 Sep;6(5):112, 110-1. | R58: Singh BB | S58: Altern Ther Health Med | T58: 2000 | U58: 2000-09-30
A59: A structural chiropractic approach to the management of diffuse idiopathic skeletal hyperostosis | B59: 0 | C59: 0 | D59: 1 | E59: 12 | F59: 0 | G59: M | H59: 21 | I59: =H59/(2020-T59) -> 1.2 | J59: 0 | L59: 1 | M59: 1 | N59: 68 | P59: Troyanovich SJ, Buettner M. | Q59: J Manipulative Physiol Ther. 2003 Mar-Apr;26(3):202-6. doi: 10.1016/S0161-4754(02)54132-4. | R59: Troyanovich SJ | S59: J Manipulative Physiol Ther | T59: 2003 | U59: 2003-04-22 | X59: 10.1016/S0161-4754(02)54132-4
A60: A suspected case of ulnar tunnel syndrome relieved by chiropractic extremity adjustment methods | B60: 0 | C60: 1 | D60: 0 | E60: 13 | F60: 0 | G60: G | H60: 11 | I60: 0.6 | J60: 0 | L60: 1 | M60: 1 | N60: 68 | P60: Russell BS. | Q60: J Manipulative Physiol Ther. 2003 Nov-Dec;26(9):602-7. doi: 10.1016/j.jmpt.2003.08.005. | R60: Russell BS | S60: J Manipulative Physiol Ther | T60: 2003 | U60: 2003-12-16 | X60: 10.1016/j.jmpt.2003.08.005
A61: A theoretical model for treatment of soft tissue injuries: treatment of an ankle sprain in a college tennis player | B61: 0 | C61: 0 | D61: 0 | E61: 19 | F61: 1 | G61: S | H61: 9 | I61: 0.6 | J61: 0 | L61: 1 | M61: 1 | N61: 68 | P61: Gemmell H, Hayes B, Conway M. | Q61: J Manipulative Physiol Ther. 2005 May;28(4):285-8. doi: 10.1016/j.jmpt.2005.03.004. | R61: Gemmell H | S61: J Manipulative Physiol Ther | T61: 2005 | U61: 2005-05-11 | X61: 10.1016/j.jmpt.2005.03.004
A62: A young female athlete with acute low back pain caused by stage IV breast cancer | B62: 0 | C62: 0 | D62: 1 | E62: 15 | F62: 0 | G62: C | H62: 2 | I62: 0.7 | J62: 0 | L62: 1 | M62: 1 | N62: 20 | P62: Kahn EA | Q62: J Chiropr Med | R62: Kahn EA | S62: J Chiropr Med | T62: 2017
A63: Abdominal and back pain in a 65-year-old patient with metastatic prostate cancer | B63: 0 | C63: 0 | D63: 1 | E63: 12 | F63: 0 | G63: C | H63: 5 | I63: 0.5 | J63: 0 | L63: 1 | M63: 1 | N63: 20 | P63: Johnson TL | Q63: J Chiropr Med | R63: Johnson TL | S63: J Chiropr Med | T63: 2010
A64: Abdominal aortic aneurysm presenting as back pain to a chiropractic clinic: a case report | B64: 0 | C64: 1 | D64: 1 | E64: 14 | F64: 1 | G64: I | H64: 29 | I64: 2.1 | J64: 0 | L64: 1 | M64: 1 | N64: 68 | P64: Patel SN, Kettner NW. | Q64: J Manipulative Physiol Ther. 2006 Jun;29(5):409.e1-7. doi: 10.1016/j.jmpt.2006.04.004. | R64: Patel SN | S64: J Manipulative Physiol Ther | T64: 2006 | U64: 2006-06-10 | X64: 10.1016/j.jmpt.2006.04.004
A65: Abdominal aortic aneurysms presenting as low back pain: a report of two cases | B65: 0 | C65: 1 | D65: 1 | E65: 13 | F65: 1 | G65: I | H65: 10 | I65: 0.3 | J65: 0 | L65: 1 | M65: 1 | N65: 68 | P65: Vernon LF, Peacock JR, Esposito AP. | Q65: J Manipulative Physiol Ther. 1986 Mar;9(1):47-50. | R65: Vernon LF | S65: J Manipulative Physiol Ther | T65: 1986 | U65: 1986-03-01
A66: Abdominal aortic aneurysms: clinical diagnosis and management | B66: 0 | C66: =IF(ISNUMBER(SEARCH("*case*",A66)),"1","0") -> 0 | D66: 1 | E66: =IF(LEN(TRIM(A66))=0,0,LEN(TRIM(A66))-LEN(SUBSTITUTE(A66," ",""))+1) -> 7 | F66: =COUNTIF(A66,"*:*") -> 1 | G66: I | H66: 15 | I66: 0.7 | J66: 0 | L66: 1 | M66: 1 | N66: 68 | P66: Cates JR. | Q66: J Manipulative Physiol Ther. 1997 Oct;20(8):557-61. | R66: Cates JR | S66: J Manipulative Physiol Ther | T66: 1997 | U66: 1997-11-05
A67: Aberrancy of the midtarsal locking mechanism as a causative factor in recurrent ankle sprains | B67: 0 | C67: 0 | D67: 0 | E67: 14 | F67: 0 | G67: S | H67: 3 | I67: 0.1 | J67: 0 | L67: 1 | M67: 1 | N67: 68 | P67: Michaud TC | Q67: J Manipulative Physiol Ther | R67: Michaud TC | S67: J Manipulative Physiol Ther | T67: 1989
A68: Acquired Horner's syndrome: clinical review | B68: 0 | C68: 0 | D68: 1 | E68: 5 | F68: 1 | G68: I | H68: 30 | I68: 1.8 | J68: 0 | L68: 0 | M68: 0 | N68: 21 | P68: Patel S, Ilsen PF. | Q68: Optometry. 2003 Apr;74(4):245-56. | R68: Patel S | S68: Optometry | T68: 2003 | U68: 2003-04-22
A69: Acquired spinal stenosis secondary to an expanding thoracic vertebral hemangioma | B69: 0 | C69: 0 | D69: 1 | E69: 10 | F69: 0 | G69: C | H69: 49 | I69: 1.8 | J69: 1 | K69: MD (Orthopedic surgery, Radiology) | L69: 1 | M69: 0 | N69: 243 | P69: Yochum TR, Lile RL, Schultz GD, Mick TJ, Brown CW. | Q69: Spine (Phila Pa 1976). 1993 Feb;18(2):299-305. doi: 10.1097/00007632-199302000-00021. | R69: Yochum TR | S69: Spine (Phila Pa 1976) | T69: 1993 | U69: 1993-02-01 | X69: 10.1097/00007632-199302000-00021
A70: Acromial apophysitis in a 13-year-old adolescent boy: A common condition in an uncommon location | B70: 1 | C70: 0 | D70: 1 | E70: 14 | F70: 1 | G70: M | H70: 6 | I70: 0.8 | J70: 0 | L70: 1 | M70: 1 | N70: 20 | P70: Quinlan E, Bogar WC | Q70: J Chiropr Med | R70: Quinlan E | S70: J Chiropr Med | T70: 2012
A71: Active functional restoration and work hardening program returns patient with 2 1/2-year-old elbow fracture-dislocation to work after 6 months: a case report | B71: 0 | C71: 1 | D71: 1 | E71: 22 | F71: 1 | G71: S | H71: 0 | I71: 0.0 | J71: 0 | L71: 1 | M71: 1 | N71: 10 | P71: Teperman LJ | Q71: J Can Chiropr Assoc | R71: Teperman LJ | S71: J Can Chiropr Assoc | T71: 2002
A72: Acupuncture and a gluten-free diet relieve urticaria and eczema in a case of undiagnosed dermatitis herpetiformis and atypical or extraintestinal celiac disease: A case report | B72: 0 | C72: 1 | D72: 0 | E72: 25 | F72: 1 | G72: L | H72: 5 | I72: 0.6 | J72: 0 | L72: 1 | M72: 1 | N72: 20 | P72: Ohlsen BA | Q72: J Chiropr Med | R72: Ohlsen BA | S72: J Chiropr Med | T72: 2011
A73: Acupuncture and Traditional Chinese Medicine for the management of a 35-year-old man with chronic prostatitis with chronic pelvic pain syndrome | B73: 0 | C73: 0 | D73: 0 | E73: 20 | F73: 0 | G73: N | H73: 8 | I73: 1.1 | J73: 0 | L73: 1 | M73: 1 | N73: 20 | P73: Ohlsen BA | Q73: J Chiropr Med | R73: Ohlsen BA | S73: J Chiropr Med | T73: 2013
A74: Acute compartment syndrome of the foot in a soccer player: A case report | B74: 0 | C74: 1 | D74: 0 | E74: 13 | F74: 1 | G74: S | H74: 9 | I74: 1.0 | J74: 0 | L74: 1 | M74: 1 | N74: 10 | P74: Laframboise MA, Muir B | Q74: J Can Chiropr Assoc | R74: Laframboise MA, Muir B | S74: J Can Chiropr Assoc | T74: 2011
A75: Acute deterioration in Chiari type 1 malformation after chiropractic cervical manipulation | B75: 0 | C75: 0 | D75: 1 | E75: 11 | F75: 0 | G75: Q | H75: 8 | I75: 0.4 | J75: 0 | L75: 0 | M75: 0 | N75: 200 | P75: Leong WK, Kermode AG. | Q75: J Neurol Neurosurg Psychiatry. 2001 Jun;70(6):816-7. doi: 10.1136/jnnp.70.6.816. | R75: Leong WK | S75: J Neurol Neurosurg Psychiatry | T75: 2001 | U75: 2001-06-30 | V75: PMC1737391 | X75: 10.1136/jnnp.70.6.816
A76: Acute low back pain treated by spinal manipulation and electronic acupuncture | B76: 0 | C76: 0 | D76: 1 | E76: 11 | F76: 0 | G76: M | H76: 9 | I76: 0.3 | J76: 0 | L76: 1 | M76: 1 | N76: 68 | P76: Fisher HW | Q76: J Manipulative Physiol Ther | R76: Fisher HW | S76: J Manipulative Physiol Ther | T76: 1992
A77: Acute lumbosacral myofascitis associated with Reiter's disease | B77: 0 | C77: 0 | D77: 1 | E77: 7 | F77: 0 | G77: M | H77: 4 | I77: 0.1 | J77: 0 | L77: 1 | M77: 1 | N77: 68 | P77: Irowa GO. | Q77: J Manipulative Physiol Ther. 1988 Dec;11(6):500-4. | R77: Irowa GO | S77: J Manipulative Physiol Ther | T77: 1988 | U77: 1988-12-01
A78: Acute lymphangitis mimicking mechanical neck pain | B78: 0 | C78: 0 | D78: 1 | E78: 6 | F78: 0 | G78: A | H78: 1 | I78: 0.1 | J78: 1 | K78: MD (family medicine) | L78: 1 | M78: 1 | N78: 68 | P78: Boudreau LA, Pinto A. | Q78: J Manipulative Physiol Ther. 2001 Sep;24(7):474-6. | R78: Boudreau LA | S78: J Manipulative Physiol Ther | T78: 2001 | U78: 2001-09-20
A79: Acute onset of painful ophthalmoplegia following chiropractic manipulation of the neck. Initial sign of intracranial aneurysm | B79: 0 | C79: 0 | D79: 1 | E79: 16 | F79: 0 | G79: I | H79: 13 | I79: 0.6 | J79: 0 | L79: 0 | M79: 0 | N79: 55 | P79: Simnad VI. | Q79: West J Med. 1997 Mar;166(3):207-10. | R79: Simnad VI | S79: West J Med | T79: 1997 | U79: 1997-03-01 | V79: PMC1304125
A80: Acute onset-low back pain and hip pain secondary to metastatic prostate cancer: A case report | B80: 0 | C80: 1 | D80: 1 | E80: 15 | F80: 1 | G80: C | H80: 9 | I80: 0.6 | J80: 0 | L80: 1 | M80: 1 | N80: 10 | P80: Lishchyna N, Henderson S | Q80: J Can Chiropr Assoc | R80: Lishchyna N | S80: J Can Chiropr Assoc | T80: 2004
A81: Acute pancreatitis presenting as back pain: A case report | B81: 0 | C81: 1 | D81: 1 | E81: 9 | F81: 1 | G81: K | H81: 7 | I81: 0.3 | J81: 0 | L81: 1 | M81: 1 | N81: 10 | P81: Decina PA, Vallee D | Q81: J Can Chiropr Assoc | R81: Decina PA, Vallee D | S81: J Can Chiropr Assoc | T81: 1992
A82: Acute paraplegia after chiropraxis | B82: 0 | C82: 0 | D82: 1 | E82: 4 | F82: 0 | G82: G | H82: 11 | I82: 1.2 | J82: 0 | L82: 0 | M82: 0 | N82: 128 | P82: Lopez-Gonzalez A, Peris-Celda M. | Q82: Eur Spine J. 2011 Jul;20 Suppl 2(Suppl 2):S143-6. doi: 10.1007/s00586-010-1443-5. Epub 2010 Jun 16. | R82: Lopez-Gonzalez A | S82: Eur Spine J | T82: 2011 | U82: 2010-06-18 | V82: PMC3111500 | X82: 10.1007/s00586-010-1443-5
A83: Acute paraplegia following chiropractic therapy | B83: 0 | C83: 0 | D83: 1 | E83: 5 | F83: 0 | G83: A | H83: 6 | I83: 0.4 | J83: 0 | L83: 0 | M83: 0 | N83: 75 | P83: Wang CC, Kuo JR, Chio CC, Tsai TC. | Q83: J Clin Neurosci. 2006 Jun;13(5):578-81. doi: 10.1016/j.jocn.2005.03.041. | R83: Wang CC | S83: J Clin Neurosci | T83: 2006 | U83: 2006-06-14 | X83: 10.1016/j.jocn.2005.03.041
A84: Acute proximal deep vein thrombosis: Presentation in a chiropractic office | B84: 0 | C84: 0 | D84: 0 | E84: 10 | F84: 1 | G84: I | H84: 2 | I84: 0.1 | J84: 0 | L84: 1 | M84: 1 | N84: 10 | P84: Kopansky-Giles D | Q84: J Can Chiropr Assoc | R84: Kopansky-Giles D | S84: J Can Chiropr Assoc | T84: 1995
A85: Acute sciatica and progressive neurological deficit secondary to facet synovial cysts: A report of two cases | B85: 0 | C85: 1 | D85: 1 | E85: 16 | F85: 1 | G85: M | H85: 2 | I85: 0.3 | J85: 1 | K85: MD (Orthopedic surgery) | L85: 1 | M85: 1 | N85: 10 | P85: Arthur B, Lewkonia P, Quon JA, Street J, Bishop PB. | Q85: J Can Chiropr Assoc. 2012 Sep;56(3):173-8. | R85: Arthur B | S85: J Can Chiropr Assoc | T85: 2012 | U85: 2012-09-22 | V85: PMC3430450
A86: Acute spinal epidural haematoma causing cord compression after chiropractic neck manipulation: an under-recognised serious hazard? | B86: 0 | C86: 0 | D86: 1 | E86: 15 | F86: 1 | G86: S | H86: 10 | I86: 1.0 | J86: 0 | L86: 0 | M86: 0 | N86: 25 | P86: Lidder S, Lang KJ, Masterson S, Blagg S. | Q86: J R Army Med Corps. 2010 Dec;156(4):255-7. doi: 10.1136/jramc-156-04-11. | R86: Lidder S | S86: J R Army Med Corps | T86: 2010 | U86: 2011-02-01 | X86: 10.1136/jramc-156-04-11
A87: Acute thoracic epidural hematoma following spinal manipulative therapy: case report and review of the literature | B87: 0 | C87: 1 | D87: 1 | E87: 15 | F87: 1 | G87: S | H87: 9 | I87: 1.0 | J87: 0 | L87: 0 | M87: 0 | N87: 69 | P87: Lee TH, Chen CF, Lee TC, Lee HL, Lu CH. | Q87: Clin Neurol Neurosurg. 2011 Sep;113(7):575-7. doi: 10.1016/j.clineuro.2011.02.006. Epub 2011 Mar 11. | R87: Lee TH | S87: Clin Neurol Neurosurg | T87: 2011 | U87: 2011-03-15 | X87: 10.1016/j.clineuro.2011.02.006
A88: Acute thoracolumbar pain due to cholecystitis: a case study | B88: 0 | C88: 1 | D88: 1 | E88: 9 | F88: 1 | G88: K | H88: 2 | I88: 0.4 | J88: 0 | L88: 1 | M88: 1 | N88: 30 | P88: Carter CT | Q88: Chiropr Man Therap | R88: Carter CT | S88: Chiropr Man Therap | T88: 2015
A89: Adductor tendinopathy in a hockey player with persistent groin pain: A case report | B89: 0 | C89: 1 | D89: 0 | E89: 13 | F89: 1 | G89: S | H89: 13 | I89: 1.3 | J89: 1 | K89: MD (Radiology) | L89: 1 | M89: 1 | N89: 10 | P89: Avrahami D, Choudur HN | Q89: J Can Chiropr Assoc | R89: Avrahami D | S89: J Can Chiropr Assoc | T89: 2010
A90: Adhesive capsulitis: a case report | B90: 0 | C90: 1 | D90: 1 | E90: 5 | F90: 1 | G90: M | H90: 27 | I90: 1.4 | J90: 0 | L90: 1 | M90: 1 | N90: 10 | P90: Kazemi M | Q90: J Can Chiropr Assoc | R90: Kazemi M | S90: J Can Chiropr Assoc | T90: 2000
A91: Adolescent apophyseal ring fracture simulating lumbar disc herniation: A case report | B91: 1 | C91: 1 | D91: 1 | E91: 11 | F91: 1 | G91: S | H91: 10 | I91: =H91/(2020-T91) -> 0.4 | J91: 1 | K91: MD (Neurology) | L91: 1 | M91: 1 | N91: 10 | P91: Tibbles AC, Donat J | Q91: J Can Chiropr Assoc | R91: Tibbles AC | S91: J Can Chiropr Assoc | T91: 1992
A92: Adolescent idiopathic scoliosis treated by spinal manipulation: a case study | B92: 1 | C92: 1 | D92: 1 | E92: 10 | F92: 1 | G92: M | H92: 37 | I92: 3.1 | J92: 0 | L92: 1 | M92: 1 | N92: 87 | P92: Chen KC, Chiu EH. | Q92: J Altern Complement Med. 2008 Jul;14(6):749-51. doi: 10.1089/acm.2008.0054. | R92: Chen KC | S92: J Altern Complement Med | T92: 2008 | U92: 2008-08-05 | X92: 10.1089/acm.2008.0054
A93: Adolescent idiopathic scoliosis treatment using Pettibon corrective procedures: A case report | B93: 0 | C93: 1 | D93: 1 | E93: 11 | F93: 1 | G93: M | H93: 23 | I93: 1.4 | J93: 0 | L93: 1 | M93: 1 | N93: 20 | P93: Morningstar MW, Strauchman MN, Gilmour G | Q93: J Chiropr Med | R93: Morningstar MW | S93: J Chiropr Med | T93: 2004
A94: Adolescent knee pain: Fracture or normal? A case report | B94: 1 | C94: 1 | D94: 0 | E94: 9 | F94: 1 | G94: S | H94: 0 | I94: 0.0 | J94: 0 | L94: 1 | M94: 1 | N94: 10 | P94: Corso M, Howitt S | Q94: J Can Chiropr Assoc | R94: Corso M | S94: J Can Chiropr Assoc | T94: 2018
A95: Adolescent lumbar disc herniation: A case report | B95: 1 | C95: 1 | D95: 1 | E95: 7 | F95: 1 | G95: M | H95: 11 | I95: 0.5 | J95: 0 | L95: 1 | M95: 1 | N95: 10 | P95: King L, Mior SA, Devonshire-Zielonka K | Q95: J Can Chiropr Assoc | R95: King L | S95: J Can Chiropr Assoc | T95: 1996
A96: Alleviation of chronic spine pain and headaches by reducing forward head posture and thoracic hyperkyphosis: a CBP(Â®) case report | B96: 0 | C96: 1 | D96: 1 | E96: 19 | F96: 1 | G96: M | H96: 6 | I96: 3.0 | J96: 0 | L96: 1 | M96: 3 | N96: 29 | P96: Fortner MO, Oakley PA, Harrison DE. | Q96: J Phys Ther Sci. 2018 Aug;30(8):1117-1123. doi: 10.1589/jpts.30.1117. Epub 2018 Aug 7. | R96: Fortner MO | S96: J Phys Ther Sci | T96: 2018 | U96: 2018-08-30 | V96: PMC6110208 | X96: 10.1589/jpts.30.1117
A97: Alleviation of neck pain by the non-surgical rehabilitation of a pathologic cervical kyphosis to a normal lordosis: a CBP(Â®) case report | B97: 0 | C97: 1 | D97: 1 | E97: 21 | F97: 1 | G97: M | H97: 0 | I97: 0.0 | J97: 0 | L97: 1 | M97: 3 | N97: 29 | P97: Dennis AK, Oakley PA, Weiner MT, VanVranken TA, Shapiro DA, Harrison DE. | Q97: J Phys Ther Sci. 2018 Apr;30(4):654-657. doi: 10.1589/jpts.30.654. Epub 2018 Apr 20. | R97: Dennis AK | S97: J Phys Ther Sci | T97: 2018 | U97: 2018-05-01 | V97: PMC5909021 | X97: 10.1589/jpts.30.654
A98: Alleviation of pain and disability in a post-surgical C4-C7 total fusion patient after reducing a lateral head translation (side shift) posture: a CBP(®) case report with a 14â€…year follow-up | B98: 0 | C98: 1 | D98: 1 | E98: 29 | F98: 1 | G98: M | H98: 3 | I98: 1.0 | J98: 0 | L98: 1 | M98: 3 | N98: 29 | P98: Oakley PA, Harrison DE. | Q98: J Phys Ther Sci. 2018 Jul;30(7):952-957. doi: 10.1589/jpts.30.952. Epub 2018 Jul 3. | R98: Oakley PA | S98: J Phys Ther Sci | T98: 2018 | U98: 2018-07-24 | V98: PMC6047960 | X98: 10.1589/jpts.30.952
A99: Alleviation of posttraumatic dizziness by restoration of the cervical lordosis: a CBP(®) case study with a one year follow-up | B99: 0 | C99: 1 | D99: 1 | E99: 19 | F99: 1 | G99: R | H99: 0 | I99: 0.0 | J99: 0 | L99: 1 | M99: 3 | N99: 29 | P99: Fortner MO, Oakley PA, Harrison DE. | Q99: J Phys Ther Sci. 2018 May;30(5):730-733. doi: 10.1589/jpts.30.730. Epub 2018 May 8. | R99: Fortner MO | S99: J Phys Ther Sci | T99: 2018 | U99: 2018-05-17 | V99: PMC5940483 | X99: 10.1589/jpts.30.730
A100: Amyotrophic lateral sclerosis presenting as upper limb weakness in a 35 year old female: A case report | B100: 0 | C100: 1 | D100: 1 | E100: 17 | F100: 1 | G100: G | H100: 4 | I100: =H100/(2020-T100) -> 0.4 | J100: 0 | L100: 1 | M100: 1 | N100: 10 | P100: Sigurdson L | Q100: J Can Chiropr Assoc | R100: Sigurdson L | S100: J Can Chiropr Assoc | T100: 2011
A101: An algorithm for the management of scoliosis | B101: 1 | C101: 0 | D101: 1 | E101: 7 | F101: 0 | G101: M | H101: 8 | I101: 0.2 | J101: 1 | K101: MD (Orthopedic surgery) | L101: 1 | M101: 1 | N101: 68 | P101: Nykoliation JW, Cassidy JD, Arthur BE, Wedge JH. | Q101: J Manipulative Physiol Ther. 1986 Mar;9(1):1-14. | R101: Nykoliation JW | S101: J Manipulative Physiol Ther | T101: 1986 | U101: 1986-03-01
A102: An approach to interprofessional management of complex patients: A case report | B102: 0 | C102: 1 | D102: 1 | E102: 11 | F102: 1 | G102: K | H102: 0 | I102: 0.0 | J102: 1 | K102: RN, pharmacy | L102: 1 | M102: 1 | N102: 10 | P102: Bauman CA, Fillingham J, Keely-Dyck E, Elrafih Y, Stevenson J, Boehm M, Haesler L, Kaufman S, Duck T, Kenney J, Henry S | Q102: J Can Chiropr Assoc | R102: Bauman CA, Fillingham J, Keely-Dyck E, Elrafih Y, Stevenson J, Boehm M, Haesler L, Kaufman S, Duck T, Kenney J, Henry S | S102: J Can Chiropr Assoc | T102: 2019
A103: An atypical case of nephrolithiasis with transient remission of symptoms following spinal manipulation | B103: 0 | C103: 1 | D103: 1 | E103: 13 | F103: 0 | G103: N | H103: 4 | I103: 0.4 | J103: 0 | L103: 1 | M103: 1 | N103: 20 | P103: Wolcott CC | Q103: J Chiropr Med | R103: Wolcott CC | S103: J Chiropr Med | T103: 2010
A104: An atypical clay shoveler's fracture: A case report | B104: 0 | C104: 1 | D104: 1 | E104: 8 | F104: 1 | G104: S | H104: 14 | I104: 0.7 | J104: 0 | L104: 1 | M104: 1 | N104: 10 | P104: Feldman VB, Astri F | Q104: J Can Chiropr Assoc | R104: Feldman VB, Astri F | S104: J Can Chiropr Assoc | T104: 2001
A105: An integrative treatment approach of a patient with cervical radiculitis: A case report | B105: 0 | C105: 1 | D105: 1 | E105: 13 | F105: 1 | G105: M | H105: 1 | I105: 0.1 | J105: 0 | L105: 1 | M105: 1 | N105: 20 | P105: Apfelbeck L | Q105: J Chiropr Med | R105: Apfelbeck L | S105: J Chiropr Med | T105: 2005
A106: An unexpected outcome in a case of low-back pain with peripheralization | B106: 0 | C106: 1 | D106: 1 | E106: 11 | F106: 0 | G106: M | H106: 0 | I106: 0.0 | J106: 0 | L106: 1 | M106: 1 | N106: 66 | P106: DeVore JW. | Q106: Altern Ther Health Med. 1999 Nov;5(6):128, 126-7. | R106: DeVore JW | S106: Altern Ther Health Med | T106: 1999 | U106: 1999-11-07
A107: An unusual case of gout in the wrist: the importance of monitoring medication dosage and interaction. A case report | B107: 0 | C107: 1 | D107: 0 | E107: 19 | F107: 1 | G107: M | H107: 14 | I107: 1.1 | J107: 0 | L107: 1 | M107: 1 | N107: 30 | P107: Jacobs CL, Stern PJ | Q107: Chiropr & Osteopat | R107: Jacobs CL, Stern PJ | S107: Chiropr & Osteopat | T107: 2007
A108: An unusual case of polyostotic fibrous dysplasia in a 53-year-old woman with low back pain | B108: 0 | C108: 1 | D108: 1 | E108: 15 | F108: 0 | G108: Q | H108: 0 | I108: 0.0 | J108: 1 | K108: RN | L108: 1 | M108: 1 | N108: 20 | P108: Villafañe FE, Jokerst AR, Yochum AM, Kettner NW | Q108: J Chiropr Med | R108: Villafañe FE | S108: J Chiropr Med | T108: 2016
A109: An unusual cause for lumbar radiculopathy: a synovial facet joint cyst of the right L5 joint | B109: 0 | C109: 0 | D109: 1 | E109: 16 | F109: 1 | G109: M | H109: 9 | I109: 0.4 | J109: 1 | K109: MD (Orthopedic surgery) | L109: 1 | M109: 1 | N109: 68 | P109: Bougie JD, Franco D, Segil CM. | Q109: J Manipulative Physiol Ther. 1996 Jan;19(1):48-51. | R109: Bougie JD | S109: J Manipulative Physiol Ther | T109: 1996 | U109: 1996-01-01
A110: An unusual presentation and outcome of complex regional pain syndrome: a case report | B110: 0 | C110: 1 | D110: 1 | E110: 13 | F110: 1 | G110: G | H110: 11 | I110: 0.8 | J110: 0 | L110: 1 | M110: 1 | N110: 10 | P110: Shearer HM, Trim A | Q110: J Can Chiropr Assoc | R110: Shearer HM | S110: J Can Chiropr Assoc | T110: 2006
A111: Aneurysmal bone cyst in a 21-year-old woman presenting with chronic low back pain in a chiropractic office: a case report | B111: 0 | C111: 1 | D111: 1 | E111: 20 | F111: 1 | G111: M | H111: 1 | I111: 0.1 | J111: 0 | L111: 1 | M111: 1 | N111: 87 | P111: Tasca L, Reinke T. | Q111: J Altern Complement Med. 2013 Sep;19(9):782-4. doi: 10.1089/acm.2012.0673. Epub 2013 Feb 25. | R111: Tasca L | S111: J Altern Complement Med | T111: 2013 | U111: 2013-02-27 | X111: 10.1089/acm.2012.0673
A112: Aneurysmal bone cyst of the hand | B112: 0 | C112: 0 | D112: 0 | E112: 6 | F112: 0 | G112: M | H112: 7 | I112: 0.3 | J112: 0 | L112: 1 | M112: 1 | N112: 68 | P112: Bogar WC. | Q112: J Manipulative Physiol Ther. 1993 Mar-Apr;16(3):182-4. | R112: Bogar WC | S112: J Manipulative Physiol Ther | T112: 1993 | U112: 1993-03-01
A113: Aneurysmal bone cyst presenting as a pathologic fracture in a 12-year-old football player | B113: 1 | C113: 0 | D113: 1 | E113: 13 | F113: 0 | G113: M | H113: 2 | I113: 0.3 | J113: 0 | L113: 1 | M113: 1 | N113: 20 | P113: Welk AB, Kettner NW | Q113: J Chiropr Med | R113: Welk AB | S113: J Chiropr Med | T113: 2014
A114: Anterior and posterior fixation of a cervical fracture induced by chiropractic spinal manipulation in ankylosing spondylitis: a case report | B114: 0 | C114: 1 | D114: 1 | E114: 19 | F114: 1 | G114: S | H114: 12 | I114: 0.9 | J114: 0 | L114: 0 | M114: 0 | N114: 182 | P114: Liao CC, Chen LR. | Q114: J Trauma. 2007 Oct;63(4):E90-4. doi: 10.1097/01.ta.0000246957.22573.63. | R114: Liao CC | S114: J Trauma | T114: 2007 | U114: 2007-12-20 | X114: 10.1097/01.ta.0000246957.22573.63
A115: Anterolisthesis in the cervical spine--spondylolysis | B115: 0 | C115: 0 | D115: 1 | E115: 5 | F115: 0 | G115: M | H115: 7 | I115: 0.2 | J115: 0 | L115: 1 | M115: 1 | N115: 68 | P115: Rowe L, Steiman I. | Q115: J Manipulative Physiol Ther. 1987 Feb;10(1):11-20. | R115: Rowe L | S115: J Manipulative Physiol Ther | T115: 1987 | U115: 1987-02-01
A116: Anticoagulant therapy and subdural hematoma formation | B116: 0 | C116: 0 | D116: 0 | E116: 6 | F116: 0 | G116: I | H116: 4 | I116: 0.1 | J116: 1 | K116: MD (neurology) | L116: 1 | M116: 1 | N116: 68 | P116: Quon JA, Thiel HW, Cassidy JD, Donat JR. | Q116: J Manipulative Physiol Ther. 1990 Jan;13(1):30-2. | R116: Quon JA | S116: J Manipulative Physiol Ther | T116: 1990 | U116: 1990-01-01
A117: Applied kinesiology methods for a 10-year-old child with headaches, neck pain, asthma, and reading disabilities | B117: 1 | C117: 0 | D117: 1 | E117: 15 | F117: 0 | G117: F | H117: 16 | I117: 1.6 | J117: 0 | L117: 1 | M117: 1 | N117: 20 | P117: Cuthbert S, Rosner A | Q117: J Chiropr Med | R117: Cuthbert S | S117: J Chiropr Med | T117: 2010
A118: Approach to low back pain. Chiropractic | B118: 0 | C118: 0 | D118: 1 | E118: 6 | F118: 0 | G118: M | H118: 1 | I118: 0.2 | J118: 0 | L118: 1 | M118: 0 | N118: 0 | P118: French S, Werth P, Walker B. | Q118: Aust Fam Physician. 2014 Jan-Feb;43(1):43-4. | R118: French S | S118: Aust Fam Physician | T118: 2014 | U118: 2014-02-25
A119: Arm weakness in a child following chiropractor manipulation of the neck | B119: 1 | C119: 0 | D119: 1 | E119: 11 | F119: 0 | G119: I | H119: 6 | I119: 1.0 | J119: 0 | L119: 0 | M119: 0 | N119: 56 | P119: Deputy SR. | Q119: Semin Pediatr Neurol. 2014 Jun;21(2):124-6. doi: 10.1016/j.spen.2014.04.016. Epub 2014 Apr 16. | R119: Deputy SR | S119: Semin Pediatr Neurol | T119: 2014 | U119: 2014-08-24 | X119: 10.1016/j.spen.2014.04.016
A120: Arnold-Chiari Type I malformation: a look at two cases in the adult | B120: 0 | C120: 1 | D120: 1 | E120: 12 | F120: 1 | G120: Q | H120: 2 | I120: 0.1 | J120: 0 | L120: 1 | M120: 1 | N120: 10 | P120: McArthur RA | Q120: J Can Chiropr Assoc | R120: McArthur RA | S120: J Can Chiropr Assoc | T120: 1994
A121: Assimilation of the atlas and occiput: A case report | B121: 0 | C121: 1 | D121: 1 | E121: 9 | F121: 1 | G121: Q | H121: 6 | I121: 0.2 | J121: 0 | L121: 1 | M121: 1 | N121: 10 | P121: Grilliot JR, Oswald CA | Q121: J Can Chiropr Assoc | R121: Grilliot JR, Oswald CA | S121: J Can Chiropr Assoc | T121: 1988
A122: Atlantoaxial anomalies with particular emphasis on os odontoideum | B122: 0 | C122: 0 | D122: 1 | E122: 8 | F122: 0 | G122: Q | H122: 8 | I122: 0.3 | J122: 0 | L122: 1 | M122: 1 | N122: 68 | P122: Vickers ED | Q122: J Manipulative Physiol Ther | R122: Vickers ED | S122: J Manipulative Physiol Ther | T122: 1990
A123: Atlanto-axial instability in psoriatic arthritis: A case report | B123: 0 | C123: 1 | D123: 1 | E123: 8 | F123: 1 | G123: L | H123: 0 | I123: 0.0 | J123: 0 | L123: 1 | M123: 1 | N123: 10 | P123: Meiteen GP | Q123: J Can Chiropr Assoc | R123: Meiteen GP | S123: J Can Chiropr Assoc | T123: 1998
A124: Atlantoaxial Rotatory Subluxation in a 10-Year-Old Boy | B124: 1 | C124: 0 | D124: 1 | E124: 7 | F124: 0 | G124: S | H124: 0 | I124: 0.0 | J124: 0 | L124: 1 | M124: 0 | N124: 19 | P124: Chu ECP, Chakkaravarthy DM, Lo FS, Bhaumik A. | Q124: Clin Med Insights Arthritis Musculoskelet Disord. 2020 Jul 1;13:1179544120939069. doi: 10.1177/1179544120939069. eCollection 2020. | R124: Chu ECP | S124: Clin Med Insights Arthritis Musculoskelet Disord | T124: 2020 | U124: 2020-07-14 | V124: PMC7331757 | X124: 10.1177/1179544120939069
A125: Atlanto-axial subluxation: A case report | B125: 0 | C125: 1 | D125: 1 | E125: 5 | F125: 1 | G125: M | H125: 0 | I125: =H125/(2020-T125) -> 0.0 | J125: 0 | L125: 1 | M125: 1 | N125: 10 | P125: Thurlow RD | Q125: J Can Chiropr Assoc | R125: Thurlow RD | S125: J Can Chiropr Assoc | T125: 1988
A126: Atlas rotation following a blow on the neck | B126: 0 | C126: 0 | D126: 1 | E126: 8 | F126: 0 | G126: S | H126: 1 | I126: 0.0 | J126: 0 | L126: 1 | M126: 0 | N126: 0 | P126: Orenshaw P, Crooke P. | Q126: Aust Fam Physician. 1998 Jun;27(6):461-2. | R126: Orenshaw P | S126: Aust Fam Physician | T126: 1998 | U126: 1998-07-02
A127: Atypical brachydactyly | B127: 1 | C127: 0 | D127: 0 | E127: 2 | F127: 0 | G127: Q | H127: 0 | I127: 0.0 | J127: 0 | L127: 1 | M127: 1 | N127: 68 | P127: Mick TJ, Schultz GD. | Q127: J Manipulative Physiol Ther. 1989 Apr;12(2):131-4. | R127: Mick TJ | S127: J Manipulative Physiol Ther | T127: 1989 | U127: 1989-04-01
A128: Atypical presentation of ankylosing spondylitis: A case study | B128: 0 | C128: 1 | D128: 1 | E128: 8 | F128: 1 | G128: M | H128: 1 | I128: 0.0 | J128: 0 | L128: 1 | M128: 1 | N128: 68 | P128: Pate D, Huslig EL | Q128: J Manipulative Physiol Ther | R128: Pate D | S128: J Manipulative Physiol Ther | T128: 1985
A129: Atypical presentation of axillary web syndrome (AWS) in a male squash player: A case report | B129: 0 | C129: 1 | D129: 0 | E129: 15 | F129: 1 | G129: I | H129: 5 | I129: 1.3 | J129: 0 | L129: 1 | M129: 1 | N129: 10 | P129: Welsh P, Gryfe D | Q129: J Can Chiropr Assoc | R129: Welsh P, Gryfe D | S129: J Can Chiropr Assoc | T129: 2016
A130: Atypical presentation of cauda equina syndrome [CES] | B130: 0 | C130: =IF(ISNUMBER(SEARCH("*case*",A130)),"1","0") -> 0 | D130: 1 | E130: =IF(LEN(TRIM(A130))=0,0,LEN(TRIM(A130))-LEN(SUBSTITUTE(A130," ",""))+1) -> 7 | F130: =COUNTIF(A130,"*:*") -> 0 | G130: G | H130: 8 | I130: 0.4 | J130: 1 | K130: MD (Neurosurgery) | L130: 1 | M130: 1 | N130: 10 | P130: Caputo LA, Cusimano MD | Q130: J Can Chiropr Assoc | R130: Caputo LA | S130: J Can Chiropr Assoc | T130: 2002
A131: Atypical scapular fracture. A case report | B131: 0 | C131: 1 | D131: 0 | E131: 6 | F131: 0 | G131: S | H131: 9 | I131: 0.3 | J131: 0 | L131: 1 | M131: 4 | N131: 210 | P131: Deltoff MN, Bressler HB. | Q131: Am J Sports Med. 1989 Mar-Apr;17(2):292-5. doi: 10.1177/036354658901700225. | R131: Deltoff MN | S131: Am J Sports Med | T131: 1989 | U131: 1989-03-01 | X131: 10.1177/036354658901700225
A132: Automated static perimetry in chiropractic | B132: 0 | C132: 0 | D132: 1 | E132: 5 | F132: 0 | G132: H0 | H132: 21 | I132: 0.8 | J132: 0 | L132: 1 | M132: 1 | N132: 68 | P132: Gorman RF. | Q132: J Manipulative Physiol Ther. 1993 Sep;16(7):481-7. | R132: Gorman RF | S132: J Manipulative Physiol Ther | T132: 1993 | U132: 1993-09-01
A133: Avascular necrosis of the carpal lunate: A case report | B133: 0 | C133: 1 | D133: 0 | E133: 9 | F133: 1 | G133: M | H133: 2 | I133: 0.1 | J133: 0 | L133: 1 | M133: 1 | N133: 68 | P133: Irowa GO | Q133: J Manipulative Physiol Ther | R133: Irowa GO | S133: J Manipulative Physiol Ther | T133: 1987
A134: Avascular necrosis of the femur head | B134: 0 | C134: 0 | D134: 0 | E134: 6 | F134: 0 | G134: M | H134: 2 | I134: 0.1 | J134: 0 | L134: 1 | M134: 1 | N134: 68 | P134: Fried NR, Gerow G. | Q134: J Manipulative Physiol Ther. 1989 Jun;12(3):228-30. | R134: Fried NR | S134: J Manipulative Physiol Ther | T134: 1989 | U134: 1989-06-01
A135: Avascular necrosis of the hip in a 41-year-old male: a case study | B135: 0 | C135: 1 | D135: 1 | E135: 12 | F135: 1 | G135: M | H135: 9 | I135: 0.6 | J135: 0 | L135: 1 | M135: 1 | N135: 10 | P135: Karim R, Goel KD. | Q135: J Can Chiropr Assoc. 2004 Jun;48(2):137-41. | R135: Karim R | S135: J Can Chiropr Assoc | T135: 2004 | U135: 2007-06-06 | V135: PMC1840046
A136: Back pain and leg complaints that revealed non–small cell carcinoma: a case study | B136: 0 | C136: 1 | D136: 1 | E136: 13 | F136: 1 | G136: C | H136: 0 | I136: 0.0 | J136: 0 | L136: 1 | M136: 1 | N136: 20 | P136: Crisp CA, Pierce AN | Q136: J Chiropr Med | R136: Crisp CA | S136: J Chiropr Med | T136: 2011
A137: Back pain and spinal metastases: A case study | B137: 0 | C137: 1 | D137: 1 | E137: 8 | F137: 1 | G137: C | H137: 3 | I137: 0.1 | J137: 0 | L137: 1 | M137: 1 | N137: 10 | P137: Lafrance LJ, Cassidy JD, Nykoliation JW, Mierau DR | Q137: J Can Chiropr Assoc | R137: Lafrance LJ | S137: J Can Chiropr Assoc | T137: 1987
A138: Back pain in the emergency department: Pathological fracture following spinal manipulation | B138: 0 | C138: 0 | D138: 1 | E138: 11 | F138: 1 | G138: C | H138: 1 | I138: 0.5 | J138: 0 | L138: 0 | M138: 0 | N138: 44 | P138: Skappak C, Saude EJ. | Q138: CJEM. 2018 Mar;20(2):307-312. doi: 10.1017/cem.2017.19. Epub 2017 Apr 17. | R138: Skappak C | S138: CJEM | T138: 2018 | U138: 2017-04-18 | X138: 10.1017/cem.2017.19
A139: Basilar artery migraine or cerebral vascular accident? | B139: 0 | C139: 0 | D139: 1 | E139: 7 | F139: 0 | G139: G | H139: 2 | I139: 0.1 | J139: 0 | L139: 1 | M139: 1 | N139: 68 | P139: Cashley MA | Q139: J Manipulative Physiol Ther | R139: Cashley MA | S139: J Manipulative Physiol Ther | T139: 1993
A140: B-Cell lymphoma presenting as mechanical low-back pain with leg pain: the importance of the physical and ultrasound examination of the buttock in patients with low-back and leg pain: a case report | B140: 0 | C140: 1 | D140: 1 | E140: 31 | F140: 1 | G140: C | H140: 3 | I140: 0.2 | J140: 1 | K140: MD (Radiology) | L140: 1 | M140: 1 | N140: 10 | P140: Guben JN, Van der Mark RLJ, Yeghiayan E | Q140: J Can Chiropr Assoc | R140: Guben JN | S140: J Can Chiropr Assoc | T140: 2001
A141: Benign osteoblastoma of the atlas: A case report | B141: 1 | C141: 1 | D141: 1 | E141: 8 | F141: 1 | G141: C | H141: 7 | I141: 0.2 | J141: 0 | L141: 1 | M141: 1 | N141: 68 | P141: Buehler M, Aikenhead J | Q141: J Manipulative Physiol Ther | R141: Buehler M | S141: J Manipulative Physiol Ther | T141: 1985
A142: Beware the prolapsed disc | B142: 0 | C142: 0 | D142: 1 | E142: 4 | F142: 0 | G142: M | H142: 9 | I142: 0.3 | J142: 0 | L142: 0 | M142: 0 | N142: 27 | P142: Lehmann OJ, Mendoza ND, Bradford R. | Q142: Br J Hosp Med. 1991 Jul;46(1):52. | R142: Lehmann OJ | S142: Br J Hosp Med | T142: 1991 | U142: 1991-07-01
A143: Bilateral acrometastasis secondary to breast cancer | B143: 0 | C143: 0 | D143: 0 | E143: 6 | F143: 0 | G143: C | H143: 11 | I143: 0.7 | J143: 0 | L143: 1 | M143: 1 | N143: 68 | P143: Osterhouse MD, Guebert GM. | Q143: J Manipulative Physiol Ther. 2004 May;27(4):275-9. doi: 10.1016/j.jmpt.2004.02.007. | R143: Osterhouse MD | S143: J Manipulative Physiol Ther | T143: 2004 | U143: 2004-05-19 | X143: 10.1016/j.jmpt.2004.02.007
A144: Bilateral diaphragmatic paralysis due to cervical chiropractic manipulation | B144: 0 | C144: 0 | D144: 1 | E144: 8 | F144: 0 | G144: J | H144: 11 | I144: 2.2 | J144: 0 | L144: 0 | M144: 0 | N144: 58 | P144: John S, Tavee J. | Q144: Neurologist. 2015 Feb;19(3):65-7. doi: 10.1097/NRL.0000000000000008. | R144: John S | S144: Neurologist | T144: 2015 | U144: 2015-02-19 | X144: 10.1097/NRL.0000000000000008
A145: Bilateral idiopathic osteonecrosis of the femoral head: A case report with an emphasis on differential diagnosis, imaging, and treatment | B145: 0 | C145: 1 | D145: 1 | E145: 19 | F145: 1 | G145: M | H145: 3 | I145: 0.5 | J145: 0 | K145: Physician assistant | L145: 1 | M145: 1 | N145: 20 | P145: Battaglia PJ, Gliedt J, McDaniel C, Kettner N | Q145: J Chiropr Med | R145: Battaglia PJ | S145: J Chiropr Med | T145: 2014
A146: Bilateral occipital-parietal hemorrhagic infarctions following chiropractic cervical manipulation | B146: 0 | C146: 0 | D146: 1 | E146: 8 | F146: 0 | G146: I | H146: 19 | I146: 1.1 | J146: 0 | L146: 0 | M146: 0 | N146: 46 | P146: Jay WM, Shah MI, Schneck MJ. | Q146: Semin Ophthalmol. 2003 Dec;18(4):205-9. doi: 10.1080/08820530390895217. | R146: Jay WM | S146: Semin Ophthalmol | T146: 2003 | U146: 2004-10-30 | X146: 10.1080/08820530390895217
A147: Bilateral simultaneous optic nerve dysfunction after periorbital trauma: recovery of vision in association with with chiropractic spinal manipulation therapy | B147: 0 | C147: 0 | D147: 1 | E147: 19 | F147: 1 | G147: H0 | H147: 13 | I147: 0.6 | J147: 1 | K147: DO (Ophthalmology) | L147: 1 | M147: 1 | N147: 68 | P147: Stephens D, Pollard H, Bilton D, Thomson P, Gorman F. | Q147: J Manipulative Physiol Ther. 1999 Nov-Dec;22(9):615-21. doi: 10.1016/s0161-4754(99)70022-9. | R147: Stephens D | S147: J Manipulative Physiol Ther | T147: 1999 | U147: 2000-01-08 | X147: 10.1016/s0161-4754(99)70022-9
A148: Bilateral vertebral artery dissection after chiropractic maneuver | B148: 0 | C148: 0 | D148: 1 | E148: 7 | F148: 0 | G148: I | H148: 15 | I148: 1.5 | J148: 0 | L148: 0 | M148: 2 | N148: 25 | P148: Preul C, Joachimski F, Witte OW, Isenmann S. | Q148: Clin Neuroradiol. 2010 Dec;20(4):255-9. doi: 10.1007/s00062-010-0021-x. Epub 2010 Oct 20. | R148: Preul C | S148: Clin Neuroradiol | T148: 2010 | U148: 2010-10-21 | X148: 10.1007/s00062-010-0021-x
A149: Bilateral vertebral artery dissection after chiropractic treatment | B149: 0 | C149: 0 | D149: 1 | E149: 7 | F149: 0 | G149: I | H149: 8 | I149: 0.5 | J149: 0 | L149: 0 | M149: 0 | N149: 41 | P149: Oehler J, Gandjour J, Fiebach J, Schwab S. | Q149: Orthopade. 2003 Oct;32(10):911-3; discussion 914-5. doi: 10.1007/s00132-003-0483-5. | R149: Oehler J | S149: Orthopade | T149: 2003 | U149: 2003-10-28 | X149: 10.1007/s00132-003-0483-5
A150: Bilateral vertebral artery dissection during chiropractic treatment | B150: 0 | C150: 0 | D150: 1 | E150: 7 | F150: 0 | G150: I | H150: 3 | I150: 0.3 | J150: 0 | L150: 0 | M150: 0 | N150: 34 | P150: Kuitwaard K, Flach HZ, van Kooten F. | Q150: Ned Tijdschr Geneeskd. 2008 Nov 8;152(45):2464-9. | R150: Kuitwaard K | S150: Ned Tijdschr Geneeskd | T150: 2008 | U150: 2008-12-05
A151: Biphasic synovial sarcoma in the cervical spine: Case report | B151: 0 | C151: 1 | D151: 1 | E151: 9 | F151: 1 | G151: C | H151: 15 | I151: 1.7 | J151: 0 | L151: 1 | M151: 1 | N151: 30 | P151: Foreman SM, Stahl MJ | Q151: Chiropr Man Therap | R151: Foreman SM | S151: Chiropr Man Therap | T151: 2011
A152: Bladder metastasis presenting as neck, arm and thorax pain: a case report | B152: 0 | C152: 1 | D152: 1 | E152: 12 | F152: 1 | G152: C | H152: 2 | I152: 0.5 | J152: 0 | L152: 1 | M152: 1 | N152: 30 | P152: Daniels CJ, Wakefield PJ, Bub GA | Q152: Chiropr Man Therap | R152: Daniels CJ | S152: Chiropr Man Therap | T152: 2016
A153: Boerhaave's syndrome following chiropractic manipulation | B153: 0 | C153: 0 | D153: 1 | E153: 5 | F153: 0 | G153: K | H153: 9 | I153: 0.8 | J153: 0 | L153: 0 | M153: 0 | N153: 148 | P153: Sozio MS, Cave M. | Q153: Am Surg. 2008 May;74(5):428-9. | R153: Sozio MS | S153: Am Surg | T153: 2008 | U153: 2008-05-17
A154: Bone marrow edema caused by altered pedal biomechanics | B154: 0 | C154: 0 | D154: 0 | E154: 8 | F154: 0 | G154: M | H154: 23 | I154: 1.0 | J154: 0 | L154: 1 | M154: 1 | N154: 68 | P154: Yochum TR, Barry MS. | Q154: J Manipulative Physiol Ther. 1997 Jan;20(1):56-9. | R154: Yochum TR | S154: J Manipulative Physiol Ther | T154: 1997 | U154: 1997-01-01
A155: Bone metastases from breast cancer: guidelines for diagnosis | B155: 0 | C155: 0 | D155: 1 | E155: 8 | F155: 1 | G155: C | H155: 7 | I155: 0.4 | J155: 0 | L155: 1 | M155: 1 | N155: 68 | P155: Verbeeck A. | Q155: J Manipulative Physiol Ther. 2004 Mar-Apr;27(3):211-5. doi: 10.1016/j.jmpt.2003.12.024. | R155: Verbeeck A | S155: J Manipulative Physiol Ther | T155: 2004 | U155: 2004-05-07 | X155: 10.1016/j.jmpt.2003.12.024
A156: Brain stem compression and atlantoaxial instability secondary to chronic rheumatoid arthritis in a 67-year-old female | B156: 0 | C156: 0 | D156: 1 | E156: 15 | F156: 0 | G156: M | H156: 8 | I156: 0.7 | J156: 0 | L156: 1 | M156: 1 | N156: 68 | P156: Bonic EE, Stockwell CA, Kettner NW. | Q156: J Manipulative Physiol Ther. 2010 May;33(4):315-20. doi: 10.1016/j.jmpt.2010.03.008. | R156: Bonic EE | S156: J Manipulative Physiol Ther | T156: 2010 | U156: 2010-06-11 | X156: 10.1016/j.jmpt.2010.03.008
A157: Brain stem infarction due to chiropractic manipulation of the cervical spine | B157: 0 | C157: 0 | D157: 1 | E157: 11 | F157: 0 | G157: I | H157: 48 | I157: =H157/(2020-T157) -> 1.3 | J157: 0 | L157: 0 | M157: 0 | N157: 73 | P157: Braun IF, Pinto RS, De Filipp GJ, Lieberman A, Pasternack P, Zimmerman RD. | Q157: South Med J. 1983 Sep;76(9):1199-201. doi: 10.1097/00007611-198309000-00043. | R157: Braun IF | S157: South Med J | T157: 1983 | U157: 1983-09-01 | X157: 10.1097/00007611-198309000-00043
A158: Brain stem syndrome after cervical chiropractic manipulations | B158: 0 | C158: 0 | D158: 1 | E158: 7 | F158: 0 | G158: I | H158: 3 | I158: 0.2 | J158: 0 | L158: 0 | M158: 0 | N158: 24 | P158: Mendel T, BaraÅ„ska-Gieruszczak M. | Q158: Neurol Neurochir Pol. 2001 Jul-Aug;35(4):695-9. | R158: Mendel T | S158: Neurol Neurochir Pol | T158: 2001 | U158: 2002-01-11
A159: Breech repositioning unresponsive to Webster technique: Coexistence of oligohydramnios | B159: 0 | C159: 0 | D159: 1 | E159: 9 | F159: 1 | G159: O | H159: 5 | I159: 0.7 | J159: 0 | L159: 0 | M159: 1 | N159: 20 | P159: Roecker CB | Q159: J Chiropr Med | R159: Roecker CB | S159: J Chiropr Med | T159: 2013
A160: Bridging the gap between observation and brace treatment for adolescent idiopathic scoliosis | B160: 1 | C160: 0 | D160: 1 | E160: 12 | F160: 0 | G160: M | H160: 2 | I160: 0.7 | J160: 0 | L160: 1 | M160: 0 | O160: 3 | P160: Pu Chu EC, Kai Huang KH. | Q160: J Family Med Prim Care. 2017 Apr-Jun;6(2):447-449. doi: 10.4103/jfmpc.jfmpc_52_17. | R160: Pu Chu EC | S160: J Family Med Prim Care | T160: 2017 | U160: 2018-01-06 | V160: PMC5749105 | X160: 10.4103/jfmpc.jfmpc_52_17
A161: Bronchogenic carcinoma presenting as neuromusculoskeletal pain | B161: 0 | C161: 0 | D161: 1 | E161: 6 | F161: 0 | G161: C | H161: 4 | I161: 0.1 | J161: 0 | L161: 1 | M161: 1 | N161: 68 | P161: Downs SE | Q161: J Manipulative Physiol Ther | R161: Downs SE | S161: J Manipulative Physiol Ther | T161: 1990
A162: Brown-Seéquard syndrome associated with posttraumatic cervical epidural hematoma: case report and review of the literature | B162: 0 | C162: 1 | D162: 1 | E162: 15 | F162: 1 | G162: S | H162: 59 | I162: 1.9 | J162: 0 | L162: 0 | M162: 0 | N162: 192 | P162: Zupruk GM, Mehta Z. | Q162: Neurosurgery. 1989 Aug;25(2):278-80. | R162: Zupruk GM | S162: Neurosurgery | T162: 1989 | U162: 1989-08-01
A163: Brown-Séquard syndrome of the cervical spinal cord after chiropractic manipulation | B163: 0 | C163: 0 | D163: 1 | E163: 10 | F163: 0 | G163: G | H163: 54 | I163: 2.5 | J163: 0 | L163: 0 | M163: 2 | N163: 170 | P163: Lipper MH, Goldstein JH, Do HM. | Q163: AJNR Am J Neuroradiol. 1998 Aug;19(7):1349-52. | R163: Lipper MH | S163: AJNR Am J Neuroradiol | T163: 1998 | U163: 1998-09-03
A164: Brucellosis: a rare cause of the unstable spine | B164: 0 | C164: 0 | D164: 1 | E164: 8 | F164: 1 | G164: A | H164: 1 | I164: 0.0 | J164: 0 | L164: 1 | M164: 1 | N164: 68 | P164: Aspegren DD. | Q164: J Manipulative Physiol Ther. 1990 Mar-Apr;13(3):165-8. | R164: Aspegren DD | S164: J Manipulative Physiol Ther | T164: 1990 | U164: 1990-03-01
A165: C1 burst fracture | B165: 0 | C165: 0 | D165: 1 | E165: 3 | F165: 0 | G165: S | H165: 16 | I165: 0.6 | J165: 0 | L165: 1 | M165: 1 | N165: 68 | P165: Troyanovich S. | Q165: J Manipulative Physiol Ther. 1994 Oct;17(8):558-61. | R165: Troyanovich S | S165: J Manipulative Physiol Ther | T165: 1994 | U165: 1994-10-01
A166: Calcification of vas deferens associated with diabetes mellitus | B166: 0 | C166: 0 | D166: 0 | E166: 8 | F166: 0 | G166: E | H166: 6 | I166: 0.2 | J166: 0 | L166: 1 | M166: 1 | N166: 68 | P166: Tsuno MM, Gerber JM, Pokras RS. | Q166: J Manipulative Physiol Ther. 1991 Jan;14(1):70-3. | R166: Tsuno MM | S166: J Manipulative Physiol Ther | T166: 1991 | U166: 1991-01-01
A167: Calcium pyrophosphate deposition disease in the ankle joint: A case report | B167: 0 | C167: 1 | D167: 0 | E167: 11 | F167: 1 | G167: M | H167: 2 | I167: 0.7 | J167: 0 | L167: 1 | M167: 1 | N167: 10 | P167: Stainsby BE, Ellul N, Dimopoulos A, Lubberdink C, Salerno V, Solomon M | Q167: J Can Chiropr Assoc | R167: Stainsby BE, | S167: J Can Chiropr Assoc | T167: 2017
A168: Calcium pyrophosphate dihydrate crystal deposition disease simulating osteoarthritis of the knee: A case report | B168: 0 | C168: 1 | D168: 0 | E168: 14 | F168: 1 | G168: M | H168: 6 | I168: 1.5 | J168: 0 | L168: 1 | M168: 1 | N168: 20 | P168: Pawelek SA, Illes JD, Taylor JA | Q168: J Chiropr Med | R168: Pawelek SA | S168: J Chiropr Med | T168: 2016
A169: Calcium pyrophosphate dihydrate crystal deposition disease: A report of a case | B169: 0 | C169: 1 | D169: 1 | E169: 11 | F169: 1 | G169: M | H169: 1 | I169: 0.0 | J169: 0 | L169: 1 | M169: 1 | N169: 10 | P169: Till AG, Mior SA | Q169: J Can Chiropr Assoc | R169: Till AG | S169: J Can Chiropr Assoc | T169: 1988
A170: Case of sudden death following rupture of thoracic aortic aneurysm during "a manual therapy" procedure in the spinal area | B170: 0 | C170: 1 | D170: 1 | E170: 19 | F170: 0 | G170: I | H170: 2 | I170: 0.3 | J170: 0 | L170: 0 | M170: 0 | N170: 6 | P170: Kaczorowska A, DÄ…bkowska A. | Q170: Arch Med Sadowej Kryminol. 2014;64(4):246-53. doi: 10.5114/amsik.2014.50529. | R170: Kaczorowska A | S170: Arch Med Sadowej Kryminol | T170: 2014 | U170: 2015-04-25 | X170: 10.5114/amsik.2014.50529
A171: Case report 449: Chondroblastoma involving C5 and C6 | B171: 1 | C171: 1 | D171: 1 | E171: 8 | F171: 1 | G171: C | H171: 19 | I171: 0.6 | J171: 1 | K171: MD (Orthopedic surgery) | L171: 1 | M171: 2 | N171: 86 | P171: Howe JW, Baumgard S, Yochum TR, Sladich MA. | Q171: Skeletal Radiol. 1988;17(1):52-5. doi: 10.1007/BF00361456. | R171: Howe JW | S171: Skeletal Radiol | T171: 1988 | U171: 1988-01-01 | X171: 10.1007/BF00361456
A172: Case report of right hamate hook fracture in a patient with previous fracture of left hamate hook: Is it hamate bipartite? | B172: 0 | C172: 1 | D172: 0 | E172: 21 | F172: 1 | G172: S | H172: 5 | I172: 0.4 | J172: 0 | L172: 1 | M172: 1 | N172: 30 | P172: Evans MW Jr, Gilbert ML, Norton S | Q172: Chiropr & Osteopat | R172: Evans MW Jr | S172: Chiropr & Osteopat | T172: 2006
A173: Case series of ultrasound-guided platelet-rich plasma injections for sacroiliac joint dysfunction | B173: 0 | C173: 1 | D173: 1 | E173: 11 | F173: 0 | G173: M | H173: 26 | I173: 8.7 | J173: 1 | K173: MD (PMR), ND | L173: 1 | M173: 4 | N173: 28 | P173: Ko GD, Mindra S, Lawson GE, Whitmore S, Arseneau L. | Q173: J Back Musculoskelet Rehabil. 2017;30(2):363-370. doi: 10.3233/BMR-160734. | R173: Ko GD | S173: J Back Musculoskelet Rehabil | T173: 2017 | U173: 2016-07-10 | X173: 10.3233/BMR-160734
A174: Case study: acceleration/deceleration injury with angular kyphosis | B174: 0 | C174: 1 | D174: 1 | E174: 7 | F174: 1 | G174: M | H174: 21 | I174: 1.1 | J174: 0 | L174: 1 | M174: 1 | N174: 68 | P174: Kessinger RC, Boneva DV. | Q174: J Manipulative Physiol Ther. 2000 May;23(4):279-87. doi: 10.1067/mmt.2000.106095. | R174: Kessinger RC | S174: J Manipulative Physiol Ther | T174: 2000 | U174: 2000-05-23 | X174: 10.1067/mmt.2000.106095
A175: Catastrophic complication of chiropractic manipulation: a report of quadriparesis | B175: 0 | C175: 0 | D175: 1 | E175: 9 | F175: 1 | G175: G | H175: 14 | I175: 1.3 | J175: 0 | L175: 0 | M175: 0 | N175: 223 | P175: Talluri SK, Talluri J, Besur S, Kakarala R, Klair N. | Q175: Am J Med. 2009 Nov;122(11):e3-4. doi: 10.1016/j.amjmed.2009.05.015. | R175: Talluri SK | S175: Am J Med | T175: 2009 | U175: 2009-10-27 | X175: 10.1016/j.amjmed.2009.05.015
A176: Cauda equina syndrome after chiropractic treatment | B176: 0 | C176: 0 | D176: 1 | E176: 6 | F176: 0 | G176: G | H176: 0 | I176: 0.0 | J176: 0 | L176: 0 | M176: 0 | N176: 21 | P176: Undabeitia J, SamprÃ³n N, Ãšrculo E. | Q176: Neurocirugia (Astur). 2016 May-Jun;27(3):151-3. doi: 10.1016/j.neucir.2016.02.007. Epub 2016 Mar 31. | R176: Undabeitia J | S176: Neurocirugia (Astur) | T176: 2016 | U176: 2016-04-05 | X176: 10.1016/j.neucir.2016.02.007
A177: Cauda equina syndrome caused by chiropraxis on a patient previously free of lumbar spine symptoms | B177: 0 | C177: 0 | D177: 1 | E177: 15 | F177: 0 | G177: G | H177: 35 | I177: 0.9 | J177: 0 | L177: 0 | M177: 0 | N177: 747 | P177: Malmivaara A, Pohjola R. | Q177: Lancet. 1982 Oct 30;2(8305):986-7. doi: 10.1016/s0140-6736(82)90184-2. | R177: Malmivaara A | S177: Lancet | T177: 1982 | U177: 1982-10-30 | X177: 10.1016/s0140-6736(82)90184-2
A178: Cauda equina syndrome due to sequestrated recurrent disk herniation after chiropractic manipulation | B178: 0 | C178: 0 | D178: 1 | E178: 12 | F178: 0 | G178: G | H178: 25 | I178: 1.1 | J178: 0 | L178: 0 | M178: 0 | N178: 63 | P178: Markowitz HD, Dolce DT. | Q178: Orthopedics. 1997 Jul;20(7):652-3. | R178: Markowitz HD | S178: Orthopedics | T178: 1997 | U178: 1997-07-01
A179: Cellulitis of the knee in a 16-month-old boy: A case report | B179: 0 | C179: 1 | D179: 0 | E179: 11 | F179: 1 | G179: L | H179: 0 | I179: 0.0 | J179: 0 | L179: 1 | M179: 1 | N179: 20 | P179: Joubert SV | Q179: J Chiropr Med | R179: Joubert SV, Duarte MA | S179: J Chiropr Med | T179: 2016
A180: Central lumbar disc prolapse following chiropractic manipulation: a call for audit of 'alternative practice' | B180: 0 | C180: 0 | D180: 1 | E180: 14 | F180: 1 | G180: M | H180: 7 | I180: 0.3 | J180: 0 | L180: 0 | M180: 0 | N180: 77 | P180: Slater RN, Spencer JD. | Q180: J R Soc Med. 1992 Oct;85(10):637-8. | R180: Slater RN | S180: J R Soc Med | T180: 1992 | U180: 1992-10-01 | V180: PMC1293698
A181: Central retinal artery occlusion after manipulation of the neck by a chiropractor | B181: 0 | C181: 0 | D181: 1 | E181: 12 | F181: 0 | G181: H0 | H181: 25 | I181: 1.0 | J181: 0 | L181: 0 | M181: 0 | N181: 179 | P181: Jumper JM, Horton JC. | Q181: Am J Ophthalmol. 1996 Mar;121(3):321-2. doi: 10.1016/s0002-9394(14)70283-1. | R181: Jumper JM | S181: Am J Ophthalmol | T181: 1996 | U181: 1996-03-01 | X181: 10.1016/s0002-9394(14)70283-1
A182: Cephalgia secondary to neuroma in a patient with ankylosing spondylitis: a case report | B182: 0 | C182: 1 | D182: 1 | E182: 13 | F182: 1 | G182: C | H182: 3 | I182: 0.1 | J182: 0 | L182: 1 | M182: 1 | N182: 68 | P182: Andreoli GT, Sandman KB. | Q182: J Manipulative Physiol Ther. 1982 Sep;5(3):129-31. | R182: Andreoli GT | S182: J Manipulative Physiol Ther | T182: 1982 | U182: 1982-09-01
A183: Cerebellar infarction from chiropractic neck manipulation: case report and review of the literature | B183: 0 | C183: 1 | D183: 1 | E183: 13 | F183: 1 | G183: I | H183: 19 | I183: 0.5 | J183: 0 | L183: 0 | M183: 0 | O183: 3 | P183: Zak SM, Carmody RF. | Q183: Ariz Med. 1984 May;41(5):333-7. | R183: Zak SM | S183: Ariz Med | T183: 1984 | U183: 1984-05-01
A184: Cerebellar infarction in a young adult due to traumatic vertebral artery dissection after lateral mass fracture at the sixth cervical vertebrae | B184: 0 | C184: 0 | D184: 1 | E184: 21 | F184: 0 | G184: I | H184: 3 | I184: 0.3 | J184: 0 | L184: 0 | M184: 0 | N184: 19 | P184: Yoshida T, Jinnouchi J, Toyoda K, Hasegawa E, Fujimoto S, Okada Y. | Q184: Brain Nerve. 2008 May;60(5):567-70. | R184: Yoshida T | S184: Brain Nerve | T184: 2008 | U184: 2008-06-04
A185: Cerebral embolus following chiropractic manipulation in a patient with a calcified carotid artery | B185: 0 | C185: 0 | D185: 1 | E185: 13 | F185: 0 | G185: I | H185: 10 | I185: 1.4 | J185: 0 | L185: 0 | M185: 2 | N185: 61 | P185: Dandamudi VS, Thaler DE, Malek AM. | Q185: J Neuroimaging. 2013 Jul;23(3):429-30. doi: 10.1111/j.1552-6569.2012.00706.x. Epub 2012 Jul 20. | R185: Dandamudi VS | S185: J Neuroimaging | T185: 2013 | U185: 2012-07-24 | X185: 10.1111/j.1552-6569.2012.00706.x
A186: Cerebral Hemorrhage Following Chiropractic Activator Treatment - Case Report and Review of Literature | B186: 0 | C186: 1 | D186: 1 | E186: 13 | F186: 0 | G186: I | H186: 3 | I186: 0.8 | J186: 0 | L186: 0 | M186: 0 | N186: 5 | P186: Cohen FL. | Q186: J Neurol Surg Rep. 2016 Oct;77(4):e162-e167. doi: 10.1055/s-0036-1597626. | R186: Cohen FL | S186: J Neurol Surg Rep | T186: 2016 | U186: 2016-12-22 | V186: PMC5167612 | X186: 10.1055/s-0036-1597626
A187: Cerebral infarct in the circulatory area of the arteria cerebri media following chiropractic therapy of the cervical spine | B187: 0 | C187: 0 | D187: 1 | E187: 18 | F187: 0 | G187: I | H187: 5 | I187: 0.2 | J187: 0 | L187: 0 | M187: 0 | N187: 38 | P187: Braune HJ, Munk MH, Huffmann G. | Q187: Dtsch Med Wochenschr. 1991 Jul 5;116(27):1047-50. doi: 10.1055/s-2008-1063715. | R187: Braune HJ | S187: Dtsch Med Wochenschr | T187: 1991 | U187: 1991-07-05 | X187: 10.1055/s-2008-1063715
A188: Cerebral polyopia with extrastriate quadrantanopia: report of a case with magnetic resonance documentation of V2/V3 cortical infarction | B188: 0 | C188: 1 | D188: 1 | E188: 17 | F188: 1 | G188: I | H188: 32 | I188: 1.5 | J188: 0 | L188: 0 | M188: 0 | N188: 52 | P188: Jones MR, Waggoner R, Hoyt WF. | Q188: J Neuroophthalmol. 1999 Mar;19(1):1-6. | R188: Jones MR | S188: J Neuroophthalmol | T188: 1999 | U188: 1999-03-31
A189: Cerebrospinal fluid leak secondary to chiropractic manipulation | B189: 0 | C189: 0 | D189: 1 | E189: 7 | F189: 0 | G189: G | H189: 10 | I189: 1.4 | J189: 0 | L189: 0 | M189: 0 | N189: 30 | P189: Kusnezov NA, Velani SA, Lu DC. | Q189: Surg Neurol Int. 2013 Mar 22;4(Suppl 2):S118-20. doi: 10.4103/2152-7806.109456. Print 2013. | R189: Kusnezov NA | S189: Surg Neurol Int | T189: 2013 | U189: 2013-05-07 | V189: PMC3642754 | X189: 10.4103/2152-7806.109456
A190: Cerebrovascular accident without chiropractic manipulation: a case report | B190: 0 | C190: 1 | D190: 0 | E190: 8 | F190: 1 | G190: I | H190: 13 | I190: 0.9 | J190: 0 | L190: 1 | M190: 1 | N190: 68 | P190: Kier AL, McCarthy PW. | Q190: J Manipulative Physiol Ther. 2006 May;29(4):330-5. doi: 10.1016/j.jmpt.2006.03.001. | R190: Kier AL | S190: J Manipulative Physiol Ther | T190: 2006 | U190: 2006-05-13 | X190: 10.1016/j.jmpt.2006.03.001
A191: Cerebrovascular complications following manipulation of the neck | B191: 0 | C191: 0 | D191: 1 | E191: 7 | F191: 0 | G191: I | H191: 1 | I191: 0.0 | J191: 0 | L191: 0 | M191: 0 | N191: 28 | P191: Dahl A, Bjark P, Anke IM. | Q191: Tidsskr Nor Laegeforen. 1982 Jan 30;102(3):155-7. | R191: Dahl A | S191: Tidsskr Nor Laegeforen | T191: 1982 | U191: 1982-01-30
A192: Cervical Artery Dissection Caused by Electrical Cupping Therapy with High-Negative Pressure - Case Report | B192: 0 | C192: 1 | D192: 1 | E192: 14 | F192: 0 | G192: I | H192: 0 | I192: 0.0 | J192: 0 | L192: 0 | M192: 0 | N192: 55 | P192: Zuhorn F, Schäbitz WR, Oelschläger C, Klingebiel R, Rogalewski A. | Q192: J Stroke Cerebrovasc Dis. 2020 Nov;29(11):105207. doi: 10.1016/j.jstrokecerebrovasdis.2020.105207. Epub 2020 Aug 7. | R192: Zuhorn F | S192: J Stroke Cerebrovasc Dis | T192: 2020 | U192: 2020-10-17 | X192: 10.1016/j.jstrokecerebrovasdis.2020.105207
A193: Cervical disc calcification in children as a cause of neck pain | B193: 1 | C193: 0 | D193: 1 | E193: 11 | F193: 0 | G193: M | H193: 0 | I193: =H193/(2020-T193) -> 0.0 | J193: 1 | K193: MD (Orthopedic surgery) | L193: 1 | M193: 1 | N193: 10 | P193: Lefebvre S, Cassidy JD, Dzus A | Q193: J Can Chiropr Assoc | R193: Lefebvre S | S193: J Can Chiropr Assoc | T193: 1993
A194: Cervical disc calcification in children: A case report | B194: 1 | C194: =IF(ISNUMBER(SEARCH("*case*",A194)),"1","0") -> 1 | D194: 1 | E194: =IF(LEN(TRIM(A194))=0,0,LEN(TRIM(A194))-LEN(SUBSTITUTE(A194," ",""))+1) -> 8 | F194: =COUNTIF(A194,"*:*") -> 1 | G194: M | H194: 4 | I194: 0.1 | J194: 1 | K194: MD (Orthopedic surgery) | L194: 1 | M194: 1 | N194: 10 | P194: Aker PD, Lopes AA, Yong-Hing K, Cassidy JD | Q194: J Can Chiropr Assoc | R194: Aker PD | S194: J Can Chiropr Assoc | T194: 1989
A195: Cervical disc herniation missed at operation: A case report | B195: 0 | C195: 1 | D195: 1 | E195: 9 | F195: 1 | G195: M | H195: 3 | I195: 0.1 | J195: 0 | L195: 1 | M195: 1 | N195: 10 | P195: Tibbles AC, Cassidy JD | Q195: J Can Chiropr Assoc | R195: Tibbles AC | S195: J Can Chiropr Assoc | T195: 1992
A196: Cervical dysphonia] | B196: 0 | C196: 0 | D196: 1 | E196: 2 | F196: 0 | G196: R | H196: 23 | I196: 0.8 | J196: 0 | L196: 1 | M196: 0 | N196: 45 | P196: Hülse M. | Q196: Folia Phoniatr (Basel). 1991;43(4):181-96. | R196: HÃ¼lse M | S196: Folia Phoniatr (Basel) | T196: 1991 | U196: 1991-01-01
A197: Cervical ependymoma in a male adolescent with neck and back pain | B197: 1 | C197: 0 | D197: 1 | E197: 11 | F197: 0 | G197: C | H197: 9 | I197: 0.8 | J197: 0 | L197: 1 | M197: 1 | N197: 68 | P197: Cho JCS, Miller A, Kettner NW | Q197: J Manipulative Physiol Ther | R197: Cho JCS | S197: J Manipulative Physiol Ther | T197: 2009
A198: Cervical epidural abscess in an afebrile patient: a case report | B198: 0 | C198: 1 | D198: 1 | E198: 10 | F198: 1 | G198: G | H198: 5 | I198: 0.4 | J198: 0 | L198: 1 | M198: 1 | N198: 68 | P198: Murphy DR, Morris NJ. | Q198: J Manipulative Physiol Ther. 2006 Oct;29(8):672-5. doi: 10.1016/j.jmpt.2006.08.001. | R198: Murphy DR | S198: J Manipulative Physiol Ther | T198: 2006 | U198: 2006-10-19 | X198: 10.1016/j.jmpt.2006.08.001
A199: Cervical epidural hematoma after chiropractic manipulation in a healthy young woman: case report | B199: 0 | C199: 1 | D199: 1 | E199: 13 | F199: 1 | G199: S | H199: 75 | I199: 3.1 | J199: 0 | L199: 0 | M199: 0 | N199: 192 | P199: Segal DH, Lidov MW, Camins MB. | Q199: Neurosurgery. 1996 Nov;39(5):1043-5. doi: 10.1097/00006123-199611000-00034. | R199: Segal DH | S199: Neurosurgery | T199: 1996 | U199: 1996-11-01 | X199: 10.1097/00006123-199611000-00034
A200: Cervical epidural hematoma after chiropractic spinal manipulation | B200: 0 | C200: 0 | D200: 1 | E200: 7 | F200: 0 | G200: S | H200: 19 | I200: 1.7 | J200: 0 | L200: 0 | M200: 0 | N200: 82 | P200: Heiner JD. | Q200: Am J Emerg Med. 2009 Oct;27(8):1023.e1-2. doi: 10.1016/j.ajem.2008.12.031. | R200: Heiner JD | S200: Am J Emerg Med | T200: 2009 | U200: 2009-10-28 | X200: 10.1016/j.ajem.2008.12.031
... 977 more rows

Sheet Excluded
A1: Author | B1: Year | C1: Title | D1: Reason | E1: Reason excluded
A2: Bauman | B2: 2018 | C2: Melanoma in situ: A case report from the patient’s perspective | D2: Not directly related to chiropractic | E2: =COUNTIF(D:D,"*"&D2&"*") -> 95
A3: Bauman | B3: 2016 | C3: Nonfunctioning pituitary macroadenoma: A case report from the patient perspective | D3: Not directly related to chiropractic | E3: 95
A4: Behnam | B4: 2014 | C4: The use of dry needling and myofascial meridians in a case of plantar fasciitis | D4: Not directly related to chiropractic | E4: 95
A5: Bermudez | B5: 2014 | C5: Metastatic testicular cancer presenting as lower back pain in a pilot | D5: Not directly related to chiropractic | E5: 95
A6: Bilir | B6: 2006 | C6: Cauda equina syndrome after epidural steroid injection: a case report | D6: Not directly related to chiropractic | E6: 95
A7: Bruin DB | B7: 2014 | C7: Musculoskeletal management of a patient with a history of chronic ankle sprains: Identifying rupture of peroneal longus with diagnostic ultrasonography | D7: Not directly related to chiropractic | E7: 95
A8: Cagnie | B8: 2005 | C8: A case of abnormal findings in the course of the vertebral artery associated with an ossified hyoid apparatus. a contraindication for manipulation of the cervical spine? | D8: Not directly related to chiropractic | E8: 95
A9: Caputo | B9: 1997 | C9: Schwannoma of the cauda equina | D9: Not directly related to chiropractic | E9: 95
